Workbook

Sheet Cover Page
D1: Add company logo
K2: Template version 25.1a (for incinerators) - 27/11/25
K4: Note that there is another version of this template available for co-incinerators
B8: Add photo
K13: Notes:
K14: This template may require adjustments by individual operators to meet specific reporting requirements as defined in the site Permit(s)
B29: Annual Performance Report 2025
B31: Permit EPR/NP3738SY
B33: SELCHP
B35: South East London Combined Heat and Power
B37: Veolia SELCHP Ltd
B39: Year: | C39: 2025
B41: Address: | C41: The Kennels Site, Landmann Way, Lewisham
B43: Tel: | C43: 02035676100
B45: Email: | C45: enquiries@selchp.com
B47: Prepared by: | C47: Shehzad Lokhandwala | F47: Position: | G47: Environmental Engineer (ERF)
B49: Approved by: | C49: Husain Suwasrawala | F49: Position: | G49: General Manager
B51: Version: | C51: 1
B53: Issue Date: | C53: 2026-01-28

Sheet Facility Info
A1: =+'Cover Page'!$B$29 -> Annual Performance Report 2025 | E1: =+'Cover Page'!$B$33 -> SELCHP
A3: Plant Description and Design | K3: Notes:
A5: In 1986, faced with the increasing scarcity and environmental problems of landfill, the London Boroughs of Lewisham, Southwark and Greenwich came together to search for a realistic alternative. In 1988, they formed a Consortium - South East London Combined Heat and Power - from which SELCHP, Energy Recovery Facility (ERF), now takes its name. The facility recovers heat energy from the combustion of non-hazardous waste to raise steam, to generate electricity from a steam turbine which is then exported to the National Grid. Residual steam from the process is used to heat a district heating network, which supplies heat for domestic heating and hot water to local residents. Strict environmental controls and proven operating experience ensure that SELCHP remains consistently compliant with environmental permitting regulations. Technical details of the plant: Two boilers supply steam to one common turbine Maximum Permitted Refuse throughput – 464,000 tonnes per annum (29 tonnes per hour per boiler) Number of tipping bays – 11 Steam output – 38 tonnes of steam per hour at 395°C and 46 bar Flue gas treatment – Selective Non-Catalytic Reduction (SNCR) DeNOx, activated carbon injection, semi-wet lime scrubber and high performance bag filters system, discharging into a 100 metre high chimney Electrical Generation Capacity – 35MWe and a District Heating potential capacity of 40MWth | K5: Include summary of plant design, design capacity, no. of combustion lines, electrical and heat capacity and any other general information that describes the facility, its location and purpose
A20: Summary of Operational Processes and Procedures
A22: The main purpose of the activity at SELCHP is to burn non-hazardous municipal waste and to recover energy in the form of steam for both; the export of heat via a district heating network and as electricity for export to the national grid. SELCHP is a consortium of Local Authorities and private enterprise that operates a 464,000 tonne per year, mass burn, municipal waste incinerator in Deptford in the London Borough of Lewisham. Waste is delivered both; directly to site by refuse collection vehicles and various other waste vehicles. Waste delivered to site is discharged into the waste storage bunker. Oversized and unsuitable wastes are rejected and removed. The waste is then charged into one of two furnaces by dedicated grab cranes. Hydraulic ram feeders control the charging rate of the waste to the furnace grate. Waste is burnt on a reverse acting stoker grate with combustion air supplied in a controlled manner to ensure efficient combustion. The production on Oxides of Nitrogen (NOx) by combustion is mitigated by the injection of ammonia solution into the furnace by a process of Selective Non-Catalytic Reduction (SNCR). Bottom ash from the grate is quenched in a water bath to prevent the release of dust and provide a gas seal, at the ash discharger outlet. Ferrous metal is recovered from the ash by a drum magnet. Residual ash is recovered and sent to a recycling facility in Greenwich, London. The hot gases from the combustion process are passed through a boiler to raise steam, which is then forwarded to a steam turbine to generate up to 32 MW of electricity for export to the national grid. Excess steam, of too low an enthalpy to generate electricity, is taken off the turbine, allowing for the export of heat via the District Heating network to local residents. This heat would otherwise be lost to atmosphere,as waste heat, via the Air Cooled Condenser (ACC). Exhaust gasses from the boiler are sent to the flue gas treatment plant. Firstly activated carbon is injected to adsorb mercury, heavy metals, dioxins and dioxin like compounds. Secondly, a semi-dry lime scrubbing plant removes acid gasses, predominantly hydrogen chloride (HCl) and sulphur dioxide (SO2). Lastly, the flue gases pass through a series of bad filters to control particulate emissions. The cleaned gasses are discharged from a 100 meter, twin flue (one for each furnace) chimney. SELCHP operates an Environmental Management system accredited to ISO 14001. There are no European sites within 10 km. Air dispersion modeling has established that the site has minimal impact on sites of special scientific interest (SSSI) within that radius. All emissions from the plant have been modelled, demonstrating that it is unlikely to have a significant impact on local air quality, due to it urban setting. There are no releases to controlled waters as part of the process. Process effluents are reused within the process. Residual effluents are released to sewer as trade effluent. A Household, commercial and industrial waste transfer station may also be operated within the permit boundary, under conditions set out in ‘Standard Rules Permit SR2008No1’ when required. | K22: Include summary of key processes and procedures such as (but not limited to); waste reception, control rooms, grate, bed and boiler, energy & heat generation, cooling systems, residue management, emission controls, health and safety systems, maintenance

Sheet Operational Data
A1: =+'Cover Page'!$B$29 -> Annual Performance Report 2025 | E1: =+'Cover Page'!$B$33 -> SELCHP
A3: Operational Data
A4: Plant Size: | B4: 464000 | D4: tonnes pa | J4: Notes:
A5: Nominal net thermal input: | B5: 30 | C5: MWth | J5: * Export capacity = nominal generation capacity at the generator terminals minus nominal parasitic load. ** CHP and district heating plants only - put N/A if no heat export. *** Combusted tonnage = tonnes delivered in period + (tonnes in bunker at start of period – tonnes in bunker at end of period), or equivalent calculation depending on plant type **** Availability Definition: The availability of a line is to be calculated by the number of hours the line reported Continuously Monitored emission levels to the Regulator through the calendar year divided by the total number of hours in that year. The overall plant availability is calculated as the mean of all lines in the plant. For clarity this includes periods of abnormal operation. Rationale: The primary function of an Energy from Waste facility is the disposal of waste. It follows therefore that the availability of a plant is determined by the period of time a facility spends undertaking this activity. *****NCV of waste: This should be completed for all plants which have a boiler. Calculate using total thermal power produced by boiler/boiler efficiency, or other suitable calculation.
A6: Nominal electrical export capacity*: | B6: 30 | C6: MWe
A7: Nominal heat export capacity**: | B7: 40 | C7: MWth
A8: No. of combustion lines: | B8: 2 | C8: No. of steam turbines: | E8: 1
A10: Waste types received | B10: Unit | C10: Q1 | D10: Q2 | E10: Q3 | F10: Q4 | G10: Year Total | H10: %
A11: Household / Local Authority | B11: tonnes | C11: 99582.22 | D11: 97148.7 | E11: 84563.1 | F11: 103340.94 | G11: =SUM(C11:F11) -> 384634.96 | H11: =IF(G11>0,G11/$G$21,"-") -> 0.9127715557
A12: Commercial & Industrial | C12: 6.5 | D12: 8.28 | E12: 3.52 | F12: 4.24 | G12: =SUM(C12:F12) -> 22.54 | H12: 5.348934186e-05
A13: Hazardous | C13: - | D13: - | E13: - | F13: - | G13: 0 | H13: -
A14: Clinical | C14: 23.46 | D14: 23.12 | E14: 19.98 | F14: 26.4 | G14: 92.96 | H14: 0.0002206020062
A15: Waste wood (biomass) | C15: - | D15: - | E15: - | F15: - | G15: 0 | H15: -
A16: Refuse Derived Fuel (incl. SRF) - H'hold/LA | C16: 9582.88 | D16: 9046.16 | E16: 6449.56 | F16: 11563.3 | G16: =SUM(C16:F16) -> 36641.9 | H16: 0.08695435295
A17: Refuse Derived Fuel (incl. SRF) - C&I | C17: - | D17: - | E17: - | F17: - | G17: 0 | H17: -
A18: Other [Please specify] | C18: - | D18: - | E18: - | F18: - | G18: 0 | H18: -
A19: Other [Please specify] | C19: - | D19: - | E19: - | F19: - | G19: 0 | H19: -
A20: Other [Please specify] | C20: - | D20: - | E20: - | F20: - | G20: 0 | H20: -
A21: Total waste received | C21: =SUM(C11:C20) -> 109195.06 | D21: =SUM(D11:D20) -> 106226.26 | E21: =SUM(E11:E20) -> 91036.16 | F21: =SUM(F11:F20) -> 114934.88 | G21: 421392.36
A22: Rejected Waste | C22: - | D22: - | E22: - | F22: - | G22: =SUM(C22:F22) -> 0 | H22: =IF(G22>0,G22/$G$21,"-") -> -
A23: Unprocessed waste transferred out | C23: - | D23: 2.54 | E23: - | F23: - | G23: =SUM(C23:F23) -> 2.54 | H23: =IF(G23>0,G23/$G$21,"-") -> 6.027636571e-06
A24: Total waste combusted *** | C24: 108373.16 | D24: 106249.7 | E24: 88823.04 | F24: 116444.5 | G24: =SUM(C24:F24) -> 419890.4
A26: Energy Usage / Export | B26: Unit | C26: Q1 | D26: Q2 | E26: Q3 | F26: Q4 | G26: Year Total | H26: KWh/te | J26: Password for protected cells A password has been set to prevent accidental editing of cells with formulae. If you still need to make an edit for some reason then the password = 1234
A27: Power generated at generator terminals | B27: MWh | C27: 68582.3 | D27: 69461.6 | E27: 56441.3 | F27: 73328.3 | G27: =SUM(C27:F27) -> 267813.5 | H27: =IF(G27>0,G27*1000/$G$24,"-") -> 637.8176305
A28: Power exported to grid and other external user(s) | C28: 60677.47 | D28: 61019.27 | E28: 49658.42 | F28: 65671.36 | G28: =SUM(C28:F28) -> 237026.52 | H28: =IF(G28>0,G28*1000/$G$24,"-") -> 564.4961638
A29: Power imported | C29: 0.01 | D29: - | E29: 464.08 | F29: - | G29: 464.09 | H29: =IF(G29>0,G29*1000/$G$24,"-") -> 1.105264612
A30: Indicative parasitic load | B30: % | C30: =IF(C27>0,(C27-C28)/C27,"-") -> 0.1152604972 | D30: =IF(D27>0,(D27-D28)/D27,"-") -> 0.1215395269 | E30: 0.1201758287 | F30: 0.1044199852 | G30: =IF(G27>0,1-G28/(G27+G29),"-") -> 0.116487814
A31: Thermal Energy Exported ** | C31: 15615.21 | D31: 9860.09 | E31: 1562.1 | F31: 7684.4 | G31: =SUM(C31:F31) -> 34721.8 | H31: =IF(G31>0,G31*1000/$G$24,"-") -> 82.69253119
A32: R1 value (if applicable) | B32: R1 | C32: - | D32: - | E32: - | F32: - | G32: 0.69
A34: Waste Disposal & Recovery | B34: Unit | C34: Q1 | D34: Q2 | E34: Q3 | F34: Q4 | G34: Year Total | H34: % inputs
A35: APC Residues - produced | B35: tonnes | C35: 2991.36 | D35: 2790.29 | E35: 2267.6 | F35: 2782.04 | G35: =SUM(C35:F35) -> 10831.29 | H35: =IF(G35>0,G35/$G$24,"-") -> 0.02579551712
A36: IBA - produced | C36: 18367.56 | D36: 19897.18 | E36: 15629.32 | F36: 19994 | G36: 73888.06 | H36: =IF(G36>0,G36/$G$24,"-") -> 0.1759698721
A37: Metals recycling | C37: 2162.14 | D37: 1910.76 | E37: 1297.36 | F37: 2034 | G37: =SUM(C37:F37) -> 7404.26 | H37: 0.01763379206
A38: Other | C38: 0 | D38: 0 | E38: 0 | F38: 0 | G38: =SUM(C38:F38) -> 0 | H38: -
A39: Other | C39: 0 | D39: 0 | E39: 0 | F39: 0 | G39: 0 | H39: -
A40: Other | C40: 0 | D40: 0 | E40: 0 | F40: 0 | G40: 0 | H40: -
A42: Raw Material Usage | B42: Unit | C42: Q1 | D42: Q2 | E42: Q3 | F42: Q4 | G42: Year Total | H42: Qty./te
A43: Mains Water | B43: ltrs | C43: 31395500 | D43: 63349700 | E43: 78261000 | F43: 39169000 | G43: =SUM(C43:F43) -> 212175200 | H43: =IF(G43>0,G43/$G$24,"-") -> 505.3109097
A44: Other Water | B44: ltrs | C44: - | D44: - | E44: - | F44: - | G44: 0 | H44: =IF(G44>0,G44/$G$24,"-") -> -
A45: Ammonia | B45: kgs | C45: 402910 | D45: 393590 | E45: 306420 | F45: 455640 | G45: 1558560 | H45: 3.711825753
A46: Urea | B46: kgs | C46: - | E46: - | F46: - | G46: =SUM(C46:F46) -> 0 | H46: -
A47: Activated Carbon | B47: kgs | C47: 34350 | D47: 38940 | E47: 32370 | F47: 37330 | G47: 142990 | H47: 0.340541246
A48: Lime / hydrated lime | B48: kgs | C48: 1058120 | D48: 944500 | E48: 679570 | F48: 901790 | G48: =SUM(C48:F48) -> 3583980 | H48: 8.535513077
A49: Fuel oil | B49: ltrs | C49: 108404 | D49: 77100 | E49: 190900 | F49: 29600 | G49: 406004 | H49: 0.9669285128
A50: Gas | B50: m3 | C50: - | D50: - | E50: - | F50: - | G50: 0 | H50: -
A51: Other | C51: - | D51: - | E51: - | F51: - | G51: 0 | H51: -
A53: Summary | B53: Line/Unit | C53: Q1 | D53: Q2 | E53: Q3 | F53: Q4 | G53: Year Total | I53: Hrs in year
A54: Availability of waste combustion by line, hrs **** | B54: 1 | C54: 2048.45 | D54: 2130.05 | E54: 1704.55 | F54: 2207.55 | G54: =SUM(C54:F54) -> 8090.6 | H54: =+G54/$I$54 -> 0.9235844749 | I54: 8760 | J54: Change this figure to 8784 in a leap year
B55: 2 | C55: 2059.3 | D55: 2016.53 | E55: 1719.35 | F55: 2184.23 | G55: 7979.41 | H55: =+G55/$I$54 -> 0.9108915525
B56: 3 | C56: - | D56: - | E56: - | F56: - | G56: 0 | H56: 0
B57: 4 | C57: - | D57: - | E57: - | F57: - | G57: 0 | H57: 0
B58: 5 | C58: - | D58: - | E58: - | F58: - | G58: =SUM(C58:F58) -> 0 | H58: 0
A59: Hours of turbine operations, hrs | B59: 1 | C59: 2160 | D59: 2184 | E59: 1785.32 | F59: 2207.62 | G59: 8336.94 | H59: 0.9517054795
A60: Hours of turbine operations, hrs | B60: 2 | C60: - | D60: - | E60: - | F60: - | G60: 0 | H60: 0
A61: Hours of heat / steam export** | B61: hours | C61: - | D61: - | E61: - | F61: - | G61: 0 | H61: =IF(B61>0,G60/I54,"n/a") -> 0
A62: Net calorific value of waste***** | B62: MJ/kg | C62: 9.417 | D62: 9.662 | E62: 9.612 | F62: 9.623 | G62: =AVERAGE(C62:F62) -> 9.5785
A63: Abnormal operation events | B63: qty. | C63: - | D63: - | E63: - | F63: - | G63: 0 | H63: =IF(G63>0,"yes","no") -> no
A64: Abnormal operation duration | B64: hours | C64: - | D64: - | E64: - | F64: - | G64: 0 | H64: =+(G64)/I54 -> 0
A65: Permit Breaches | B65: qty. | C65: - | D65: - | E65: - | F65: - | G65: 0 | H65: =IF(G65>0,"yes","no") -> no

Sheet Operational Summary
A1: =+'Cover Page'!$B$29 -> Annual Performance Report 2025 | E1: =+'Cover Page'!$B$33 -> SELCHP
A3: Summary of Plant Operations and Maintenance during the reporting year | K3: Notes:
A5: Overall plant availability for 2025 was 91.72%, a marginal decrease compared to 2024. This was due to ongoing boiler grate breakdowns as a direct consequence of NOx canister explosions in the waste. Boiler 1: In addition to planned outage in July-August, the boiler suffered multiple breakdowns in January,May, August, September due to NOx cannister explosions. Boiler 2: In addition to planned outage in July-August, the boiler suffered multiple breakdowns in January, March,April, May, June and July due to NOx cannister explosions. The annual outage ran from the 21/07/25 to the 10/08/2025 for boiler 1, from the 27/07/25 to the 14/08/2025 for boiler 2 and from 26/07/25 to 10/08/25 for turbine/generator. | K5: Include summary of key operational and/or maintenance activity undertaken in the year, such as any major component upgrades and/or replacements
A29: =+'Cover Page'!C39 -> 2025 | B29: Plant shut-downs
A30: Start date | B30: End date | C30: Reason for shut-down | K30: Provide a very brief reason for plant shut-down e.g. "Shut-down prior to major outage"; "Emergency shut-down due to boiler tube leak". All emergency shut-downs must be listed (irrespective of whether or not they were required to be reported to the EA). There is no need to include periods of hot-standby here (e.g. to clear feed chute hopper blockages). For clinical waste incinerators which require regular shut-downs for boiler cleaning, there is no need to record these here (only those prior to major outages, and emergency shut-downs).
A31: 2025-01-10 | B31: 2025-01-10 | C31: ID fan trip- Line 1
A32: 2025-01-13 | B32: 2025-01-15 | C32: shut down for grate repair work- Line 2
A33: 2025-01-19 | B33: 2025-01-21 | C33: shut down for grate repair work- Line 1
A34: 2025-01-27 | B34: 2025-01-27 | C34: shut down for grate repair work- Line 1
A35: 2025-02-23 | B35: 2025-02-25 | C35: shut down for grate repair work- Line 1
A36: 2025-02-07 | B36: 2025-02-07 | C36: shut down due to islanding UKPN issue- Line 2
A37: 2025-03-17 | B37: 2025-03-19 | C37: shut down due to tube leak and grate repair work- Line 2
A38: 2025-03-20 | B38: 2025-03-20 | C38: shut down due to feeder issue- Line 1
A39: 2025-04-14 | B39: 2025-04-17 | C39: shut down for grate and burner repair work- Line 2
A40: 2025-05-01 | B40: 2025-05-03 | C40: shut down for grate repair work- Line 1
A41: 2025-05-22 | B41: 2025-05-24 | C41: shut down for grate repair work- Line 2
A42: 2025-06-17 | B42: 2025-06-17 | C42: boiler trip due to high drum pressure- Line 1
A43: 2025-06-08 | B43: 2025-06-10 | C43: shut down for grate repair work- Line 2
A44: 2025-07-09 | B44: 2025-07-11 | C44: shut down for grate repair work- Line 1
A45: 2025-07-21 | B45: 2025-08-10 | C45: Planned shut down outage and delay in startup- Line 1
A46: 2025-07-23 | B46: 2025-07-25 | C46: shut down for grate and burner repair work- Line 2
A47: 2025-07-27 | B47: 2025-08-14 | C47: Planned shut down outage- Line 2
A48: 2025-08-11 | B48: 2025-08-11 | C48: shut down due to feeder ram replacement work- Line 1
A49: 2025-08-30 | B49: 2025-08-30 | C49: shut down due to feeder ram replacement work- Line 1
A50: 2025-12-22 | B50: 2025-12-22 | C50: shutdown due to Comms issue lossing various Boiler and grate controls- Line 2

Sheet Perf. Form 1
A1: =+'Cover Page'!C39 -> 2025 | B1: Annual Reporting Performance Form 1
A3: =+'Cover Page'!B31 -> Permit EPR/NP3738SY | F3: Operator: | G3: =+'Cover Page'!B37 -> Veolia SELCHP Ltd
A4: Facility: | B4: =+'Cover Page'!B33:I33 -> SELCHP | F4: Form: | G4: Performance 1
A6: Reporting Period from: | D6: 2025-01-01 | F6: to: | G6: 2025-12-31
A8: =+A1 -> 2025 | B8: Annual Reporting of Waste Disposal and Recovery
A9: Waste Description | C9: Disposal Route(s) | E9: Disposal Tonnes | G9: Recovery Tonnes | I9: % / tonne of waste incinerated
A10: 1) Hazardous Wastes
A11: APC Residues | C11: D9 | E11: 10831.29 | G11: 0 | I11: =IF((E11+G11)>0,(E11+G11)/'Operational Data'!$G$24, "-") -> 0.02579551712
A12: IBA | I12: =IF((E12+G12)>0,(E12+G12)/'Operational Data'!$G$24, "-") -> -
I13: =IF((E13+G13)>0,(E13+G13)/'Operational Data'!$G$24, "-") -> -
I14: =IF((E14+G14)>0,(E14+G14)/'Operational Data'!$G$24, "-") -> -
A15: Total Hazardous Waste | E15: =SUM(E11:F14) -> 10831.29 | G15: =SUM(G11:H14) -> 0 | I15: =IF((E15+G15)>0,(E15+G15)/'Operational Data'!$G$24, "-") -> 0.02579551712
A17: 2) Non-Hazardous Wastes
A18: IBA | C18: R5 | G18: 73888.06 | I18: =IF((E18+G18)>0,(E18+G18)/'Operational Data'!$G$24, "-") -> 0.1759698721
A19: Ferrous Metal | C19: R4 | G19: 7404.26 | I19: =IF((E19+G19)>0,(E19+G19)/'Operational Data'!$G$24, "-") -> 0.01763379206
A20: Process Water | I20: =IF((E20+G20)>0,(E20+G20)/'Operational Data'!$G$24, "-") -> -
I21: =IF((E21+G21)>0,(E21+G21)/'Operational Data'!$G$24, "-") -> -
I22: =IF((E22+G22)>0,(E22+G22)/'Operational Data'!$G$24, "-") -> -
A23: Total Non-Hazardous Waste | E23: =SUM(E18:F22) -> 0 | G23: =SUM(G18:H22) -> 81292.32 | I23: =IF((E23+G23)>0,(E23+G23)/'Operational Data'!$G$24, "-") -> 0.1936036642
A24: TOTAL WASTE | E24: =+E23+E15 -> 10831.29 | G24: =+G23+G15 -> 81292.32 | I24: =IF((E24+G24)>0,(E24+G24)/'Operational Data'!$G$24, "-") -> 0.2193991813
A26: Operator’s comments :
A31: =+A1 -> 2025 | B31: Annual Reporting of Water and Other Raw Material Usage
A32: Raw Material | E32: Usage | G32: Unit | H32: Specific Usage | J32: Unit
A33: Mains Water | E33: =+'Operational Data'!G43/1000 -> 212175.2 | G33: m3 | H33: =IF(E33>0,E33/'Operational Data'!$G$24,"-") -> 0.5053109097 | J33: m3/te
A34: Total Water | E34: =+'Operational Data'!G44+'Operational Data'!G43/1000 -> 212175.2 | G34: m3 | H34: =IF(E34>0,E34/'Operational Data'!$G$24,"-") -> 0.5053109097 | J34: m3/te
A35: Urea / Ammonia | E35: =+'Operational Data'!G45 -> 1558560 | G35: kg | H35: =IF(E35>0,E35/'Operational Data'!$G$24,"-") -> 3.711825753 | J35: kg/te
A36: Activated Carbon | E36: =+'Operational Data'!G47 -> 142990 | G36: kg | H36: =IF(E36>0,E36/'Operational Data'!$G$24,"-") -> 0.340541246 | J36: kg/te
A37: Lime / hydrated lime / Sodium Bicarb. | E37: =+'Operational Data'!G48 -> 3583980 | G37: kg | H37: =IF(E37>0,E37/'Operational Data'!$G$24,"-") -> 8.535513077 | J37: kg/te
A39: Operator’s comments :
A43: =+A31 -> 2025 | B43: Annual Reporting of other performance indicators
A44: Parameter | C44: Results by Line
C45: A1 | D45: A2 | E45: A3 | F45: A4 | G45: A5 | I45: Turbine 1 | J45: Turbine 2
A46: Operating hours for the year, hours | C46: 8090.18 | D46: 7979.42 | I46: 8336.93
A47: Number of periods of abnormal operation, qty. | C47: 0 | D47: 0
A48: Cumulative hours of abnormal operation for this year, hours | C48: 0 | D48: 0
A50: Operator’s comments :
A54: Signed: | B54: Shehzad | G54: Date: | H54: 2026-01-15

Sheet Energy Form 1
A1: =+'Cover Page'!C39 -> 2025 | B1: Annual Reporting of Energy Usage/Export
A3: =+'Cover Page'!B31 -> Permit EPR/NP3738SY | F3: Operator: | G3: =+'Cover Page'!B37 -> Veolia SELCHP Ltd
A5: Facility: | B5: =+'Cover Page'!B33:I33 -> SELCHP | F5: Form: | G5: Energy 1
A7: Reporting Period from: | D7: =+'Perf. Form 1'!D6:E6 -> 2025-01-01 | F7: to: | G7: =+'Perf. Form 1'!G6:H6 -> 2025-12-31
A9: Energy Source | D9: Energy Usage | F9: Unit | G9: Specific Usage (KWh/tonne incinerated
A10: Electricity Produced | D10: =+'Operational Data'!G27 -> 267813.5 | F10: MWh | G10: =+'Operational Data'!H27 -> 637.8176305
A11: Electricity Imported | D11: =+'Operational Data'!G29 -> 464.09 | F11: MWh | G11: =+'Operational Data'!H29 -> 1.105264612
A12: Electricity Exported | D12: =+'Operational Data'!G28 -> 237026.52 | F12: MWh | G12: =+'Operational Data'!H28 -> 564.4961638
A13: Gas Oil | F13: tonnes
A14: Steam/hot water exported | D14: =+'Operational Data'!G31 -> 34721.8 | F14: GWh | G14: =+'Operational Data'!H31 -> 82.69253119
A18: Operator’s comments :
A29: Signed: | B29: Shehzad | G29: Date: | H29: 2026-01-15

Sheet Permit Compliance
A1: =+'Cover Page'!$B$29 -> Annual Performance Report 2025 | E1: =+'Cover Page'!$B$33 -> SELCHP
A3: Summary of Permit Compliance
A5: Compliance with permit limits for continuously monitored pollutants
A7: The plant met its emission limits as shown in the table below:
A8: Substance | C8: Percentage time compliant during operationNote 1 | L8: Notes:
C9: Half-hourly limit | F9: Daily limit | L9: Note 1: Please report to 2 decimal places, i.e. xx.xx% Note 2: Please enter into this table any permit non-compliances that the EA has given a CCS score for. Please also enter any other non-compliances which you have notified to the EA (e.g. ELV exceedances) but which have not yet been assessed by the EA. There is no need to enter any notifications which were subsequently assessed by the EA not to be permit breaches. Note 3: Please enter information here (rather than just referencing the notifications that were sent to the EA) including where relevant the incineration line reference, pollutant and value of the measured result for any ELV exceedances.
A10: Particulates | C10: 1 | F10: 1
A11: Oxides of nitrogen | C11: 1 | F11: 1
A12: Sulphur dioxide | C12: 1 | F12: 1
A13: Carbon monoxide | C13: 100% of 95% of 10-min averages | F13: 1
A14: Total organic carbon | C14: 1 | F14: 1
A15: Hydrogen chloride | C15: 1 | F15: 1
A16: Hydrogen fluoride | C16: 1 | F16: 1
A19: Summary of non-compliances under the permit Note 2
A20: Date | B20: Summary of non-compliance Note 3 | D20: Reason | G20: Measures taken to prevent reoccurrence | H20: CCS score if applicable*
H21: Impact | I21: Root cause
A27: *If the Environment Agency (EA) has given a Compliance Classification Scheme (CCS) score due to a permit non-compliance it should be entered here (CCS4 = No impact; CCS3 = Minor impact; CCS2 = Significant impact; CCS1 = Major impact). If the EA has not yet assessed a non-compliance which you have notified to them, these columns should be left blank. Enter N/A if no score was given for the root cause.
A29: Summary of any complaints received and actions to taken to resolve them.
A30: Date | B30: Summary of complaint [including Line/Reference] | E30: Reason (including whether substantiated by the operator or the EA) | H30: Measures taken to prevent reoccurrence

Sheet Improvements
A1: =+'Cover Page'!$B$29 -> Annual Performance Report 2025 | E1: =+'Cover Page'!$B$33 -> SELCHP
A3: Summary of Plant Improvements
A5: Summary of any efficiency improvements that have been completed within the year.
A6: Upgrade of both Boiler grates with advanced design grate bars; improving boiler efficiency and avalability.
A16: Summary of any permit improvement conditions that have been completed within the year and the resulting environmental benefits.
A17: N/A
A27: Summary of any changes to the plant or operating techniques which required a variation to the permit and a summary of the resulting environmental impact.
A28: none
A38: Summary of any other improvements made to the plant or planned to be made and a summary of the resulting environmental benefits.
A39: As part of the life cycle analysis of the Facility the CEMS system was replaced in October 2024. All existing analysers were replaced, plus an additional standby system was installed so that each incineration line has a dedicated standby system enhancing the system reliability and efficiency.

Sheet Public Liasion
A1: =+'Cover Page'!$B$29 -> Annual Performance Report 2025 | E1: =+'Cover Page'!$B$33 -> SELCHP
A3: Details of Public & Stakeholder Liaison
A5: Summary of events held during the reporting year.
A6: Date | C6: Description
A7: Various | C7: Site tours are laid on for internal and external stakeholders, as well as, higher education students. Tours are requested at selchp.com and are approved on a case by case basis.
A9: 2025-09-21 | C9: SELCHP annual open day, as part of ‘Open House London’
A16: List of events planned for next year
A17: Date | C17: Description
A18: Various | C18: Site tours are laid on for internal and external stakeholders, as well as, higher education students. Tours are requested at selchp.com and are approved on a case by case basis.
A20: 2026-09-01 | C20: It is intended that an open day will be held in 2026.
A29: If you wish to be involved in the public liaison programme, please contact enquiries@selchp.com

Sheet CO2 N2O
A1: =+'Cover Page'!$B$29 -> Annual Performance Report 2025 | C1: =+'Cover Page'!$B$33 -> SELCHP
A3: Carbon dioxide emissions and biogenic content of waste inputs | F3: Notes:
A5: Carbon dioxide emissions (all types of plant)
B6: Annual mass of carbon dioxide released | C6: tonnes | D6: 416161
B7: Annual mass of carbon dioxide released per tonne of waste burned | C7: t CO2 / t waste | D7: =D6/'Operational Data'!G21 -> 0.9875855367 | F7: Note 1: All permits require operators to continuously monitor CO2 to EN14181 and flow to BS EN 16911-2 (unless otherwise agreed in writing). Operators must therefore use the results from these instruments to calculate their annual CO2 emissions. Where an operator does not have a flow meter calibrated to BS EN 16911-2, the averaged flow measurement from that year's periodic monitoring can be used instead. If the plant does not have calibrated CO2 CEMS, a suitably justified emissions factor can be used.
B8: Annual mass of carbon dioxide released per MWh of energy exported | C8: t CO2 / MWh export | D8: =D6/'Operational Data'!G28 -> 1.755757119
B9: Description of how annual carbon dioxide mass emission has been calculated. See Note 1 | C9: Average of average CO2% over the year converted to mg/m3 of flue gas and multiplied by total flue gas volume. All data from CEMS DHAS, QAL2'ed and QAL3'ed.
A10: Nitrous oxide emissions (only plants which use ammonia or urea to abate NOx emissions)
B11: Annual mass emissions of nitrous oxide | C11: tonnes N2O | D11: 2.581
B12: Description of how annual nitrous oxide mass emission has been calculated See Note 2 | C12: Average of average CO2% over the year converted to mg/m3 of flue gas and multiplied by total flue gas volume. All data from CEMS DHAS, QAL2'ed and QAL3'ed. | F12: Note 2: All permits require operators to continuously monitor N2O to EN14181 and flow to BS EN 16911-2, unless otherwise agreed in writing. Operators must therefore use the results from these instruments to calculate their annual N2O emissions. Where an operator does not have a flow meter calibrated to BS EN 16911-2, the averaged flow measurement from periodic monitoring can be used instead. If the plant does not have calibrated N2O CEMS, data from periodic monitoring or a suitably justified emissions factor can be used instead.
A13: Total annual carbon dioxide + nitrous oxide emissions. See Note 3. | C13: tonnes CO2e | D13: 416845 | F13: Note 3: Total annual carbon dioxide and nitrous oxide emissions reported as carbon dioxide equivalent where 1 tonne nitrous oxide is equivalent to 265 tonnes carbon dioxide.
A14: Biogenic CO2 emissions (See Note 4) | F14: Note 4: Only plants combusting residual municipal waste, refuse derived fuel or solid recovered fuel need complete this section.
B15: Percentage of total carbon dioxide emissions arising from biogenic waste | C15: % | D15: 0.5218
B16: No. of measurements undertaken | C16: Number | D16: 12
B17: Description of how percentage biogenic carbon dioxide emissions have been measured or calculated. See Note 5 | C17: Calculated by BIOMA software using CEMS data. | F17: Note 5: The results from C14 sampling should be used if this is carried out at the plant (either via an installed sampler or from spot samples). Otherwise, as an approximation (and in lieu of any more accurate metrics which may be developed in future), the measured or estimated biogenic fraction by net calorific value (see Note 6) can be assumed to be the same as the biogenic CO2 fraction of the total CO2 emissions from the plant.
A18: Biogenic fraction of waste feedstock (See Note 4)
B19: Yearly average biogenic percentage of the waste by net calorific value (NCV) | C19: % | D19: 0.4293
B20: Description of how biogenic percentage (by NCV) has been calculated or estimated. See Note 6 | C20: Calculated by BIOMA software using CEMS data. | F20: Note 6: If C14 sampling is carried out at the plant, the methodology set out in the embedded document entitled "Renewable Energy Association Energy Content of Fuels - Description of Method" embedded below can be used to calculate the biogenic percentage by net calorific value. Otherwise, data from waste sampling or BIOMA software can be used; or if none of these are available, an estimated figure with justification or a figure assumed on the basis of up-to-date industry data can be used.
B21: Yearly average biogenic percentage of the waste by mass | C21: % | D21: 0.4293
B22: If waste sampling undertaken, no. of samples used to ascertain average biogenic percentages above | C22: Number | D22: 12
B23: Description of how biogenic percentage (by mass) has been calculated or estimated. See Note 7 | F23: Note 7: Where available, data from waste sampling should be used; otherwise, an estimated figure with justification can be used, or a figure assumed on the basis of up-to-date industry data.
B25: Comments:

Sheet Residues
A1: =+'Cover Page'!$B$29 -> Annual Performance Report 2025 | E1: =+'Cover Page'!$B$33 -> SELCHP
A3: Summary of Residue Handling for the reporting year
A5: All Ash residues (known as Incinerator Bottom Ash or IBA) are sent for recycling, off site, by licensed contractors, subject to waste licensing legislation to an aggregate processing facility situated in Greenwich. Ferrous metal removed from the IBA is collected separately and recycled by licensed contractors. The Bottom Ash is periodically monitored to ensure effective burn out is being achieved. Fine particulate matter, known as Air Pollution Control (APC) residue, removed from the flue gases by the fabric filter, is collected and sent to a specialised treatment works at Veolia Empire site located in Aldridge (West Midlands), where it is used to treat spent acid wastes prior to disposal at a licensed land fill site. All APC Residues are transported and handled within enclosed vehicles. All wastes generated by the activities is treated in accordance with the waste hierarchy referred to in Article 4 of the Waste Framework Directive. All avenues for waste processing are continuously monitored and reviewed. | K5: Include in here a summary of residue handling regimes and destinations
A28: Residue Quality Monitoring Requirements
A30: Summary of monitoring undertaken and compliance
A31: IBA - Two samples per month are analysed according to the ESA protocol
A33: APC - One sample per quarter is analysed as per permit requirements
A38: Commentary on any specific events
A39: Date & Event | C39: Description
A52: Residue Quality Monitoring Results
A53: Parameter (unit) | C53: Limit* | D53: Normal Operation
D54: Bottom ash | F54: APC Residues
A55: Loss on Ignition (average %) | C55: <5% | D55: -
A56: Total Organic Carbon (average %) | C56: <3% | D56: 1.03
A57: No. of Assessments Undertaken | C57: --- | D57: 24 | F57: 4
A58: No. of Hazardous Results | C58: --- | D58: 0
A59: * The permit will specify a limit of either 5% loss on ignition or 3% total organic carbon. If both are measured anyway, please enter the results here, even where the limit does not apply.
A61: Comments :

Sheet Water
A1: =+'Cover Page'!$B$29 -> Annual Performance Report 2025 | E1: =+'Cover Page'!$B$33 -> SELCHP
A3: Emissions to Water
A5: Summary of monitoring undertaken and compliance
A6: Water is only discharged off site to commercial sewer, in accordance with Thames Water's discharge consent requirements. There are no monitoring parameters set our in the permit. Although, monthly aggregate samples are sent for laboratory analysis against the discharge consent parameters.
A13: Commentary on any specific events
A14: Date & Event | C14: Description
A22: Emissions to Water / Sewer
A23: Parameter | D23: Monitoring Frequency | F23: Limit | G23: Target | H23: Max. | I23: Average

Sheet Air (periodic)
A1: =+'Cover Page'!$B$29 -> Annual Performance Report 2025 | E1: =+'Cover Page'!$B$33 -> SELCHP
A3: Emissions to Air (periodically monitored)
A5: Summary of monitoring undertaken, standards used and compliance | K5: Notes:
A6: Bi-Annual monitoring. Standards used as applicable; EN 1948, EN 16911-1 (MID), EN 14792, EN 12619:2013, EN 15058, EN 14790, EN ISO 21258, EN 14789, EN 14791, MID 14385, EN 1911, ISO 11338, ISO 15713, EN 14385, EN 13284-1 | K6: Template may require adjustment for any bespoke monitoring requirements of permit - please also check that all default ELV values, reference periods and the stated oxygen reference value match those for your plant, and edit if necessary!
A9: Results of emissions to air that are periodically monitored - oxygen reference 11%
A10: Substance | C10: Ref. Period | D10: Emission Limit Value | F10: Average | K10: User to add additional tables as necessary, depending on whether quarterly or bi-annual reporting is required for the compliance year
F11: A1 | G11: A2 | H11: A3 | I11: A4 | J11: A5
A12: Hydrogen fluoride | C12: 1 hr | D12: 1 mg/m3 | F12: 0.05 | G12: 0.047
A13: Cd and Tl and their compounds | C13: 0.5-8hrs | D13: 0.02 mg/m3 | F13: 0.001 | G13: 0.00175
A14: Hg and its compounds | C14: 0.5-8hrs | D14: 0.02 mg/m3 | F14: 0.00097 | G14: 0.00069
A15: Sb, As, Pb, Cr, Co, Cu, Mn, Ni, V and their compounds | C15: 0.5-8hrs | D15: 0.3 mg/m3 | F15: 0.022 | G15: 0.1295
A16: Dioxins & Furans (I-TEQ) | C16: 6-8hrs | D16: 0.06 ng/m3 | F16: 0.00655 | G16: 0.0153
A17: PCBs (WHO-TEQ Humans / Mammals) | C17: 6-8hrs | D17: None set ng/m3 | F17: 0.003128 | G17: 0.0018
A18: PCBs (WHO-TEQ Fish) | C18: 6-8hrs | D18: None set ng/m3 | F18: 4.5e-05 | G18: 8.5e-05
A19: PCBs (WHO-TEQ Birds) | C19: 6-8hrs | D19: None set ng/m3 | F19: 0.001933 | G19: 0.0031
A20: Dioxins & Furans (WHO-TEQ Humans / Mammals) | C20: 6-8hrs | D20: None set ng/m3 | F20: 0.0063 | G20: 0.01565
A21: Dioxins & Furans (WHO-TEQ Fish) | C21: 6-8hrs | D21: None set ng/m3 | F21: 0.0065 | G21: 0.01475
A22: Dioxins & Furans (WHO-TEQ Birds) | C22: 6-8hrs | D22: None set ng/m3 | F22: 0.01105 | G22: 0.02075
A23: Anthanthrene | C23: 6-8hrs | D23: None set µg/m3 | F23: 0.002 | G23: 0.003
A24: Benzo(a)anthracene | C24: 6-8hrs | D24: None set µg/m3 | F24: 0.003 | G24: 0.003
A25: Benzo(a)pyrene | C25: 6-8hrs | D25: None set µg/m3 | F25: 0.002 | G25: 0.003
A26: Benzo(b)fluoranthene | C26: 6-8hrs | D26: None set µg/m3 | F26: 0.002 | G26: 0.003
A27: Benzo(b)naptho(2,1-d) thiophene | C27: 6-8hrs | D27: None set µg/m3 | F27: 0.002 | G27: 0.003
A28: Benzo(c)phenanthrene | C28: 6-8hrs | D28: None set µg/m3 | F28: 0.002 | G28: 0.003
A29: Benzo(ghi)perylene | C29: 6-8hrs | D29: None set µg/m3 | F29: 0.002 | G29: 0.003
A30: Benzo(k)fluoranthene | C30: 6-8hrs | D30: None set µg/m3 | F30: 0.002 | G30: 0.003
A31: Cholanthrene | C31: 6-8hrs | D31: None set µg/m3 | F31: 0.002 | G31: 0.003
A32: Chrysene | C32: 6-8hrs | D32: None set µg/m3 | F32: 0.004 | G32: 0.003
A33: Cyclopenta(cd)pyrene | C33: 6-8hrs | D33: None set µg/m3 | F33: 0.002 | G33: 0.003
A34: Dibenzo(ai)pyrene | C34: 6-8hrs | D34: None set µg/m3 | F34: 0.002 | G34: 0.003
A35: Dibenzo(ah)anthracene | C35: 6-8hrs | D35: None set µg/m3 | F35: 0.002 | G35: 0.003
A36: Fluoranthene | C36: 6-8hrs | D36: None set µg/m3 | F36: 0.01 | G36: 0.06
A37: Indeno(123-cd) pyrene | C37: 6-8hrs | D37: None set µg/m3 | F37: 0.002 | G37: 0.003
A38: Naphthalene | C38: 6-8hrs | D38: None set µg/m3 | F38: 0.37 | G38: 0.62
A39: Comments :

Sheet Air (CEMS)
A1: =+'Cover Page'!$B$29 -> Annual Performance Report 2025 | I1: =+'Cover Page'!$B$33 -> SELCHP
A3: Emissions to Air (continuously monitored)
N4: Notes:
A5: Summary of monitoring undertaken, standards used and compliance | N5: Template may require adjustment for any bespoke monitoring requirements of permit
A6: Four MCERT cretified CEMS have been installed at the base of the Chimeney. Two duty, one for each combustion line and two standby for each combustion line. Extractive sampling heated lines smple the flues gases. Instuments; MIR-FT, FID, in flue electrified probe | N6: Please check that all default ELV values match those for your plant and edit if necessary!
N7: Report to 1 decimal place
A11: Results of emissions to air that are continuously monitored (maximum and average values for each line) - oxygen reference 11%
A12: Substance | B12: Reference Period | C12: Emission Limit Value | D12: A1 | F12: A2 | H12: A3 | J12: A4 | L12: A5
D13: Max. | E13: Avg. | F13: Max. | G13: Avg. | H13: Max. | I13: Avg. | J13: Max. | K13: Avg. | L13: Max. | M13: Avg.
A14: Oxides of nitrogen | B14: Daily mean | C14: 180 mg/m3 | D14: 177.08 | E14: 161.56 | F14: 175.26 | G14: 165.18
B15: ½ hourly mean | C15: 400 mg/m3 | D15: 266.42 | E15: 161.1625 | F15: 360.95 | G15: 165.02
A16: Particulates | B16: Daily mean | C16: 5 mg/m3 | D16: 3 | E16: 1.34 | F16: 3.39 | G16: 1.17
B17: ½ hourly mean | C17: 30 mg/m3 | D17: 16 | E17: 1.25 | F17: 27.61 | G17: 1.19
A18: Total Organic Carbon | B18: Daily mean | C18: 10 mg/m3 | D18: 1.2 | E18: 0.5 | F18: 0.99 | G18: 0.6
B19: ½ hourly mean | C19: 20 mg/m3 | D19: 13.94 | E19: 0.5 | F19: 11.86 | G19: 0.61
A20: Hydrogen chloride | B20: Daily mean | C20: 8 mg/m3 | D20: 6.68 | E20: 4.61 | F20: 6.74 | G20: 4.86
B21: ½ hourly mean | C21: 60 mg/m3 | D21: 42.93 | E21: 4.6 | F21: 30.19 | G21: 4.85
A22: Sulphur dioxide | B22: Daily mean | C22: 40 mg/m3 | D22: 21.41 | E22: 12.46 | F22: 22.7 | G22: 13.77
B23: ½ hourly mean | C23: 200 mg/m3 | D23: 87.1 | E23: 12.48 | F23: 82.59 | G23: 13.82
A24: Carbon monoxide | B24: Daily mean | C24: 50 mg/m3 | D24: 28.8 | E24: 8.67 | F24: 17.29 | G24: 6.64
B25: 95%ile 10-min avg * | C25: 150 mg/m3 * | D25: 105.81 | E25: 59.99 | F25: 45.01 | G25: 25.75
A26: Ammonia | B26: Daily mean | C26: 15 mg/m3 | D26: 5.5 | E26: 1.55 | F26: 9.13 | G26: 2.89
A27: * = delete as appropriate, depending on whether your plant has half-hourly or 10-min CO ELVs
A28: Comments :

Sheet HCl
A1: =+'Cover Page'!$B$29 -> Annual Performance Report 2025 | E1: =+'Cover Page'!$B$33 -> SELCHP
A3: Monitoring of Hydrogen Chloride emissions | D3: Whole Installation | G3: See Notes in Cell Q3 | J3: =+A3 -> Monitoring of Hydrogen Chloride emissions | N3: Per Combustion Line | Q3: Notes:
Q4: User to add logic to complete Whole installation, Table A5:G18. From the data in Per Combustion Line, Table J6:O79, subject to No. of lines installed
A5: =+'Cover Page'!C39 -> 2025 | B5: 1/2 Hourly Reference Periods | E5: Daily Reference Periods
A6: mg/Nm3 | B6: 1/2 hourly HCl ELV | C6: Monthly mean of half-hourly averages | D6: Highest half- hourly average | E6: Daily HCl ELV | F6: Monthly mean of daily averages | G6: Highest daily average | J6: =+A5 -> 2025 | K6: mg/Nm3 | L6: Monthly mean of half-hourly averages | M6: Highest half- hourly average | N6: Monthly mean of daily averages | O6: Highest daily average
A7: Jan | B7: 60 | C7: 4.99 | D7: 18.9 | E7: 8 | F7: 5 | G7: 6 | J7: A1 | K7: Jan | L7: 4.73 | M7: 18.9 | N7: 4.74 | O7: 5.78
A8: Feb | B8: 60 | C8: 4.74 | D8: 23.1 | E8: 8 | F8: 4.77 | G8: 6.37 | K8: Feb | L8: 4.46 | M8: 23.1 | N8: 4.49 | O8: 5.84
A9: Mar | B9: 60 | C9: 4.79 | D9: 42.93 | E9: 8 | F9: 4.79 | G9: 6.3 | K9: Mar | L9: 4.57 | M9: 42.93 | N9: 4.57 | O9: 5.55 | Q9: Whole Installation table A5:G18:
A10: Apr | B10: 60 | C10: 4.8 | D10: 19.11 | E10: 8 | F10: 4.81 | G10: 6.43 | K10: Apr | L10: 4.59 | M10: 15.2 | N10: 4.59 | O10: 6.11 | Q10: Mean: for 1/2 hourly and daily periods calculate mean of values across all operational combustion lines for the month
A11: May | B11: 60 | C11: 4.68 | D11: 22.23 | E11: 8 | F11: 4.66 | G11: 6.02 | K11: May | L11: 4.18 | M11: 12.33 | N11: 4.15 | O11: 5.69
A12: Jun | B12: 60 | C12: 4.93 | D12: 14.98 | E12: 8 | F12: 4.93 | G12: 6.68 | K12: Jun | L12: 4.79 | M12: 14.98 | N12: 4.79 | O12: 6.68
A13: Jul | B13: 60 | C13: 4.93 | D13: 22.28 | E13: 8 | F13: 4.96 | G13: 6.46 | K13: Jul | L13: 4.77 | M13: 13.11 | N13: 4.86 | O13: 6.24 | Q13: Maximum: for 1/2 hourly and daily periods use the highest value across all operational combustion lines for the month
A14: Aug | B14: 60 | C14: 4.47 | D14: 14.4 | E14: 8 | F14: 4.54 | G14: 5.57 | K14: Aug | L14: 4.47 | M14: 14.12 | N14: 4.51 | O14: 5.57
A15: Sep | B15: 60 | C15: 4.48 | D15: 18.35 | E15: 8 | F15: 4.48 | G15: 6.74 | K15: Sep | L15: 4.52 | M15: 16.37 | N15: 4.51 | O15: 6.65
A16: Oct | B16: 60 | C16: 4.41 | D16: 13.2 | E16: 8 | F16: 4.41 | G16: 6.33 | K16: Oct | L16: 4.54 | M16: 12.86 | N16: 4.54 | O16: 5.97
A17: Nov | B17: 60 | C17: 4.69 | D17: 22.45 | E17: 8 | F17: 4.69 | G17: 5.98 | K17: Nov | L17: 4.83 | M17: 17.17 | N17: 4.83 | O17: 5.95
A18: Dec | B18: 60 | C18: 4.73 | D18: 20.72 | E18: 8 | F18: 4.75 | G18: 6.08 | K18: Dec | L18: 4.69 | M18: 20.72 | N18: 4.69 | O18: 5.61
K19: Annual | L19: =AVERAGE(L7:L18) -> 4.595 | M19: =MAX(M7:M18) -> 42.93 | N19: =AVERAGE(N7:N18) -> 4.605833333 | O19: =MAX(O7:O18) -> 6.68
J21: =+A5 -> 2025 | K21: mg/Nm3 | L21: Monthly mean of half-hourly averages | M21: Highest half- hourly average | N21: Monthly mean of daily averages | O21: Highest daily average
J22: A2 | K22: Jan | L22: 5.24 | M22: 11.79 | N22: 5.23 | O22: 6
K23: Feb | L23: 5 | M23: 13.62 | N23: 5.04 | O23: 6.37
K24: Mar | L24: 5.02 | M24: 30.19 | N24: 5.02 | O24: 6.3
K25: Apr | L25: 5.03 | M25: 19.11 | N25: 5.05 | O25: 6.43
K26: May | L26: 5.18 | M26: 22.23 | N26: 5.16 | O26: 6.02
K27: Jun | L27: 5.08 | M27: 13.08 | N27: 5.07 | O27: 6.13
K28: Jul | L28: 5.05 | M28: 22.28 | N28: 5.03 | O28: 6.46
K29: Aug | L29: 4.47 | M29: 14.4 | N29: 4.59 | O29: 5.57
K30: Sep | L30: 4.45 | M30: 18.35 | N30: 4.45 | O30: 6.74
K31: Oct | L31: 4.29 | M31: 13.2 | N31: 4.29 | O31: 6.33
K32: Nov | L32: 4.55 | M32: 22.45 | N32: 4.55 | O32: 5.98
K33: Dec | L33: 4.78 | M33: 16.61 | N33: 4.81 | O33: 6.08
K34: Annual | L34: =AVERAGE(L22:L33) -> 4.845 | M34: =MAX(M22:M33) -> 30.19 | N34: =AVERAGE(N22:N33) -> 4.8575 | O34: =MAX(O22:O33) -> 6.74
J36: =+A5 -> 2025 | K36: mg/Nm3 | L36: Monthly mean of half-hourly averages | M36: Highest half- hourly average | N36: Monthly mean of daily averages | O36: Highest daily average
J37: A3 | K37: Jan
K38: Feb
K39: Mar
K40: Apr
K41: May
K42: Jun
K43: Jul
K44: Aug
K45: Sep
K46: Oct
K47: Nov
A48: Comments : | K48: Dec
K49: Annual | L49: =AVERAGE(L37:L48) ->  | M49: =MAX(M37:M48) -> 0 | N49: =AVERAGE(N37:N48) ->  | O49: =MAX(O37:O48) -> 0
J51: =+A5 -> 2025 | K51: mg/Nm3 | L51: Monthly mean of half-hourly averages | M51: Highest half- hourly average | N51: Monthly mean of daily averages | O51: Highest daily average
J52: A4 | K52: Jan
K53: Feb
K54: Mar
K55: Apr
K56: May
K57: Jun
K58: Jul
K59: Aug
K60: Sep
K61: Oct
K62: Nov
K63: Dec
K64: Annual | L64: =AVERAGE(L52:L63) ->  | M64: =MAX(M52:M63) -> 0 | N64: =AVERAGE(N52:N63) ->  | O64: =MAX(O52:O63) -> 0
J66: =+A5 -> 2025 | K66: mg/Nm3 | L66: Monthly mean of half-hourly averages | M66: Highest half- hourly average | N66: Monthly mean of daily averages | O66: Highest daily average
J67: A5 | K67: Jan
K68: Feb
K69: Mar
K70: Apr
K71: May
K72: Jun
K73: Jul
K74: Aug
K75: Sep
K76: Oct
K77: Nov
K78: Dec
K79: Annual | L79: =AVERAGE(L67:L78) ->  | M79: =MAX(M67:M78) -> 0 | N79: =AVERAGE(N67:N78) ->  | O79: =MAX(O67:O78) -> 0

Sheet SO2
A1: =+'Cover Page'!$B$29 -> Annual Performance Report 2025 | E1: =+'Cover Page'!$B$33 -> SELCHP
A3: Monitoring of Sulphur dioxide emissions | D3: Whole Installation | G3: See Notes in Cell Q3 | J3: =+A3 -> Monitoring of Sulphur dioxide emissions | N3: Per Combustion Line | Q3: Notes:
Q4: User to add logic to complete Whole installation, Table A5:G18. From the data in Per Combustion Line, Table J6:O79, subject to No. of lines installed
A5: =+'Cover Page'!C39 -> 2025 | B5: 1/2 Hourly Reference Periods | E5: Daily Reference Periods
A6: mg/Nm3 | B6: 1/2 hourly SO2 ELV | C6: Monthly mean of half-hourly averages | D6: Highest half- hourly average | E6: Daily SO2 ELV | F6: Monthly mean of daily averages | G6: Highest daily average | J6: =+A5 -> 2025 | K6: mg/Nm3 | L6: Monthly mean of half-hourly averages | M6: Highest half- hourly average | N6: Monthly mean of daily averages | O6: Highest daily average
A7: Jan | B7: 200 | C7: 15.04 | D7: 38.27 | E7: 40 | F7: 15.05 | G7: 19.06 | J7: A1 | K7: Jan | L7: 14.94 | M7: 38.27 | N7: 14.88 | O7: 17.47
A8: Feb | B8: 200 | C8: 15.25 | D8: 43.91 | E8: 40 | F8: 15.25 | G8: 18.8 | K8: Feb | L8: 15.27 | M8: 43.91 | N8: 15.23 | O8: 18.8
A9: Mar | B9: 200 | C9: 16.77 | D9: 76.11 | E9: 40 | F9: 16.78 | G9: 21.41 | K9: Mar | L9: 16.74 | M9: 76.11 | N9: 16.75 | O9: 21.41 | Q9: Whole Installation table A5:G18:
A10: Apr | B10: 200 | C10: 13.09 | D10: 33.48 | E10: 40 | F10: 13.04 | G10: 16.47 | K10: Apr | L10: 12.58 | M10: 33.48 | N10: 12.58 | O10: 16.47 | Q10: Mean: for 1/2 hourly and daily periods calculate mean of values across all operational combustion lines for the month
A11: May | B11: 200 | C11: 12.83 | D11: 74.16 | E11: 40 | F11: 12.65 | G11: 16.64 | K11: May | L11: 12.19 | M11: 74.16 | N11: 12 | O11: 15.08
A12: Jun | B12: 200 | C12: 13.01 | D12: 87.1 | E12: 40 | F12: 12.96 | G12: 19.68 | K12: Jun | L12: 12.97 | M12: 87.1 | N12: 12.97 | O12: 19.68
A13: Jul | B13: 200 | C13: 12.36 | D13: 42.86 | E13: 40 | F13: 12.36 | G13: 15.13 | K13: Jul | L13: 12.94 | M13: 42.86 | N13: 13.05 | O13: 15.13 | Q13: Maximum: for 1/2 hourly and daily periods use the highest value across all operational combustion lines for the month
A14: Aug | B14: 200 | C14: 14.33 | D14: 82.59 | E14: 40 | F14: 14.28 | G14: 22.7 | K14: Aug | L14: 12.65 | M14: 70.91 | N14: 12.6 | O14: 18.21
A15: Sep | B15: 200 | C15: 11.35 | D15: 34.21 | E15: 40 | F15: 11.35 | G15: 15.35 | K15: Sep | L15: 10.14 | M15: 29.32 | N15: 10.09 | O15: 12.9
A16: Oct | B16: 200 | C16: 10.96 | D16: 40.29 | E16: 40 | F16: 10.96 | G16: 18.82 | K16: Oct | L16: 9.83 | M16: 39.74 | N16: 9.83 | O16: 13.02
A17: Nov | B17: 200 | C17: 11.69 | D17: 55.86 | E17: 40 | F17: 11.69 | G17: 15.94 | K17: Nov | L17: 10.64 | M17: 55.86 | N17: 10.64 | O17: 14.19
A18: Dec | B18: 200 | C18: 10.76 | D18: 69.78 | E18: 40 | F18: 10.74 | G18: 22.11 | K18: Dec | L18: 8.92 | M18: 69.78 | N18: 8.92 | O18: 12.97
K19: Annual | L19: =AVERAGE(L7:L18) -> 12.48416667 | M19: =MAX(M7:M18) -> 87.1 | N19: =AVERAGE(N7:N18) -> 12.46166667 | O19: =MAX(O7:O18) -> 21.41
J21: =+A5 -> 2025 | K21: mg/Nm3 | L21: Monthly mean of half-hourly averages | M21: Highest half- hourly average | N21: Monthly mean of daily averages | O21: Highest daily average
J22: A2 | K22: Jan | L22: 15.13 | M22: 28.09 | N22: 15.2 | O22: 19.06
K23: Feb | L23: 15.23 | M23: 35.96 | N23: 15.28 | O23: 17.37
K24: Mar | L24: 16.8 | M24: 67.64 | N24: 16.82 | O24: 20.03
K25: Apr | L25: 13.65 | M25: 30.39 | N25: 13.58 | O25: 16.28
K26: May | L26: 13.47 | M26: 43.31 | N26: 13.3 | O26: 16.64
K27: Jun | L27: 13.06 | M27: 34.92 | N27: 12.95 | O27: 15.24
K28: Jul | L28: 11.9 | M28: 27.69 | N28: 11.84 | O28: 14.51
K29: Aug | L29: 16.53 | M29: 82.59 | N29: 16.35 | O29: 22.7
K30: Sep | L30: 12.52 | M30: 34.21 | N30: 12.52 | O30: 15.35
K31: Oct | L31: 12.1 | M31: 40.29 | N31: 12.1 | O31: 18.82
K32: Nov | L32: 12.73 | M32: 40.68 | N32: 12.73 | O32: 15.94
K33: Dec | L33: 12.66 | M33: 48.14 | N33: 12.62 | O33: 22.11
K34: Annual | L34: =AVERAGE(L22:L33) -> 13.815 | M34: =MAX(M22:M33) -> 82.59 | N34: =AVERAGE(N22:N33) -> 13.77416667 | O34: =MAX(O22:O33) -> 22.7
J36: =+A5 -> 2025 | K36: mg/Nm3 | L36: Monthly mean of half-hourly averages | M36: Highest half- hourly average | N36: Monthly mean of daily averages | O36: Highest daily average
J37: A3 | K37: Jan
K38: Feb
K39: Mar
K40: Apr
K41: May
K42: Jun
K43: Jul
K44: Aug
K45: Sep
K46: Oct
K47: Nov
A48: Comments : | K48: Dec
K49: Annual | L49: =AVERAGE(L37:L48) ->  | M49: =MAX(M37:M48) -> 0 | N49: =AVERAGE(N37:N48) ->  | O49: =MAX(O37:O48) -> 0
J51: =+A5 -> 2025 | K51: mg/Nm3 | L51: Monthly mean of half-hourly averages | M51: Highest half- hourly average | N51: Monthly mean of daily averages | O51: Highest daily average
J52: A4 | K52: Jan
K53: Feb
K54: Mar
K55: Apr
K56: May
K57: Jun
K58: Jul
K59: Aug
K60: Sep
K61: Oct
K62: Nov
K63: Dec
K64: Annual | L64: =AVERAGE(L52:L63) ->  | M64: =MAX(M52:M63) -> 0 | N64: =AVERAGE(N52:N63) ->  | O64: =MAX(O52:O63) -> 0
J66: =+A5 -> 2025 | K66: mg/Nm3 | L66: Monthly mean of half-hourly averages | M66: Highest half- hourly average | N66: Monthly mean of daily averages | O66: Highest daily average
J67: A5 | K67: Jan
K68: Feb
K69: Mar
K70: Apr
K71: May
K72: Jun
K73: Jul
K74: Aug
K75: Sep
K76: Oct
K77: Nov
K78: Dec
K79: Annual | L79: =AVERAGE(L67:L78) ->  | M79: =MAX(M67:M78) -> 0 | N79: =AVERAGE(N67:N78) ->  | O79: =MAX(O67:O78) -> 0

Sheet NOx
A1: =+'Cover Page'!$B$29 -> Annual Performance Report 2025 | E1: =+'Cover Page'!$B$33 -> SELCHP
A3: Monitoring of Oxides of Nitrogen emissions | D3: Whole Installation | G3: See Notes in Cell Q3 | J3: =+A3 -> Monitoring of Oxides of Nitrogen emissions | N3: Per Combustion Line | Q3: Notes:
Q4: User to add logic to complete Whole installation, Table A5:G18. From the data in Per Combustion Line, Table J6:O79, subject to No. of lines installed
A5: =+'Cover Page'!C39 -> 2025 | B5: 1/2 Hourly Reference Periods | E5: Daily Reference Periods
A6: mg/Nm3 | B6: 1/2 hourly NOx ELV | C6: Monthly mean of half-hourly averages | D6: Highest half- hourly average | E6: Daily NOx ELV | F6: Monthly mean of daily averages | G6: Highest daily average | J6: =+A5 -> 2025 | K6: mg/Nm3 | L6: Monthly mean of half-hourly averages | M6: Highest half- hourly average | N6: Monthly mean of daily averages | O6: Highest daily average
A7: Jan | B7: 400 | C7: 166.2 | D7: 227.82 | E7: 180 | F7: 166.28 | G7: 177.08 | J7: A1 | K7: Jan | L7: 165.76 | M7: 227.33 | N7: 165.79 | O7: 177.08
A8: Feb | B8: 400 | C8: 165.93 | D8: 266.42 | E8: 180 | F8: 165.92 | G8: 173.79 | K8: Feb | L8: 165.03 | M8: 266.42 | N8: 165.03 | O8: 173.79
A9: Mar | B9: 400 | C9: 165.66 | D9: 217.95 | E9: 180 | F9: 165.81 | G9: 173.5 | K9: Mar | L9: 164.46 | M9: 217.95 | N9: 164.66 | O9: 173.5 | Q9: Whole Installation table A5:G18:
A10: Apr | B10: 400 | C10: 164.42 | D10: 220.55 | E10: 180 | F10: 164.43 | G10: 175.26 | K10: Apr | L10: 161.88 | M10: 211.04 | N10: 161.88 | O10: 170.85 | Q10: Mean: for 1/2 hourly and daily periods calculate mean of values across all operational combustion lines for the month
A11: May | B11: 400 | C11: 164.06 | D11: 270.09 | E11: 180 | F11: 164.26 | G11: 172.33 | K11: May | L11: 163.25 | M11: 210.93 | N11: 163.46 | O11: 171.84
A12: Jun | B12: 400 | C12: 162.64 | D12: 224.44 | E12: 180 | F12: 162.83 | G12: 174.16 | K12: Jun | L12: 162.68 | M12: 218.11 | N12: 162.69 | O12: 170.25
A13: Jul | B13: 400 | C13: 151.19 | D13: 231.22 | E13: 180 | F13: 152.65 | G13: 171.9 | K13: Jul | L13: 143.92 | M13: 198.21 | N13: 145.54 | O13: 168.88 | Q13: Maximum: for 1/2 hourly and daily periods use the highest value across all operational combustion lines for the month
A14: Aug | B14: 400 | C14: 160.35 | D14: 274.33 | E14: 180 | F14: 161.8 | G14: 174.9 | K14: Aug | L14: 156.23 | M14: 192.22 | N14: 158.65 | O14: 167.64
A15: Sep | B15: 400 | C15: 163.23 | D15: 360.95 | E15: 180 | F15: 163.46 | G15: 174.79 | K15: Sep | L15: 160.21 | M15: 237.77 | N15: 160.55 | O15: 174.79
A16: Oct | B16: 400 | C16: 160.91 | D16: 220.29 | E16: 180 | F16: 160.91 | G16: 173.73 | K16: Oct | L16: 160.56 | M16: 216.96 | N16: 160.56 | O16: 172.53
A17: Nov | B17: 400 | C17: 167.35 | D17: 235.02 | E17: 180 | F17: 167.35 | G17: 174.42 | K17: Nov | L17: 166.75 | M17: 225.55 | N17: 166.75 | O17: 173.03
A18: Dec | B18: 400 | C18: 165.17 | D18: 326.19 | E18: 180 | F18: 165.23 | G18: 173.63 | K18: Dec | L18: 163.22 | M18: 231.43 | N18: 163.23 | O18: 171.08
K19: Annual | L19: =AVERAGE(L7:L18) -> 161.1625 | M19: =MAX(M7:M18) -> 266.42 | N19: =AVERAGE(N7:N18) -> 161.5658333 | O19: =MAX(O7:O18) -> 177.08
J21: =+A5 -> 2025 | K21: mg/Nm3 | L21: Monthly mean of half-hourly averages | M21: Highest half- hourly average | N21: Monthly mean of daily averages | O21: Highest daily average
J22: A2 | K22: Jan | L22: 166.62 | M22: 227.82 | N22: 166.74 | O22: 174.31
K23: Feb | L23: 166.79 | M23: 220.22 | N23: 166.74 | O23: 173.61
K24: Mar | L24: 166.93 | M24: 210.41 | N24: 167.04 | O24: 173.26
K25: Apr | L25: 167.26 | M25: 220.55 | N25: 167.36 | O25: 175.26
K26: May | L26: 164.86 | M26: 270.09 | N26: 165.06 | O26: 172.33
K27: Jun | L27: 162.6 | M27: 224.44 | N27: 162.99 | O27: 174.16
K28: Jul | L28: 156.88 | M28: 231.22 | N28: 157.9 | O28: 171.9
K29: Aug | L29: 165.73 | M29: 274.33 | N29: 165.7 | O29: 174.9
K30: Sep | L30: 166.17 | M30: 360.95 | N30: 166.17 | O30: 173.01
K31: Oct | L31: 161.26 | M31: 220.29 | N31: 161.26 | O31: 173.73
K32: Nov | L32: 167.96 | M32: 235.02 | N32: 167.96 | O32: 174.42
K33: Dec | L33: 167.17 | M33: 326.19 | N33: 167.29 | O33: 173.63
K34: Annual | L34: =AVERAGE(L22:L33) -> 165.0191667 | M34: =MAX(M22:M33) -> 360.95 | N34: =AVERAGE(N22:N33) -> 165.1841667 | O34: =MAX(O22:O33) -> 175.26
J36: =+A5 -> 2025 | K36: mg/Nm3 | L36: Monthly mean of half-hourly averages | M36: Highest half- hourly average | N36: Monthly mean of daily averages | O36: Highest daily average
J37: A3 | K37: Jan
K38: Feb
K39: Mar
K40: Apr
K41: May
K42: Jun
K43: Jul
K44: Aug
K45: Sep
K46: Oct
K47: Nov
A48: Comments : | K48: Dec
K49: Annual | L49: =AVERAGE(L37:L48) ->  | M49: =MAX(M37:M48) -> 0 | N49: =AVERAGE(N37:N48) ->  | O49: =MAX(O37:O48) -> 0
J51: =+A5 -> 2025 | K51: mg/Nm3 | L51: Monthly mean of half-hourly averages | M51: Highest half- hourly average | N51: Monthly mean of daily averages | O51: Highest daily average
J52: A4 | K52: Jan
K53: Feb
K54: Mar
K55: Apr
K56: May
K57: Jun
K58: Jul
K59: Aug
K60: Sep
K61: Oct
K62: Nov
K63: Dec
K64: Annual | L64: =AVERAGE(L52:L63) ->  | M64: =MAX(M52:M63) -> 0 | N64: =AVERAGE(N52:N63) ->  | O64: =MAX(O52:O63) -> 0
J66: =+A5 -> 2025 | K66: mg/Nm3 | L66: Monthly mean of half-hourly averages | M66: Highest half- hourly average | N66: Monthly mean of daily averages | O66: Highest daily average
J67: A5 | K67: Jan
K68: Feb
K69: Mar
K70: Apr
K71: May
K72: Jun
K73: Jul
K74: Aug
K75: Sep
K76: Oct
K77: Nov
K78: Dec
K79: Annual | L79: =AVERAGE(L67:L78) ->  | M79: =MAX(M67:M78) -> 0 | N79: =AVERAGE(N67:N78) ->  | O79: =MAX(O67:O78) -> 0

Sheet TOC
A1: =+'Cover Page'!$B$29 -> Annual Performance Report 2025 | E1: =+'Cover Page'!$B$33 -> SELCHP
A3: Monitoring of Total organic carbon emissions | D3: Whole Installation | G3: See Notes in Cell Q3 | J3: =+A3 -> Monitoring of Total organic carbon emissions | N3: Per Combustion Line | Q3: Notes:
Q4: User to add logic to complete Whole installation, Table A5:G18. From the data in Per Combustion Line, Table J6:O79, subject to No. of lines installed
A5: =+'Cover Page'!C39 -> 2025 | B5: 1/2 Hourly Reference Periods | E5: Daily Reference Periods
A6: mg/Nm3 | B6: 1/2 hourly TOC ELV | C6: Monthly mean of half-hourly averages | D6: Highest half- hourly average | E6: Daily TOC ELV | F6: Monthly mean of daily averages | G6: Highest daily average | J6: =+A5 -> 2025 | K6: mg/Nm3 | L6: Monthly mean of half-hourly averages | M6: Highest half- hourly average | N6: Monthly mean of daily averages | O6: Highest daily average
A7: Jan | B7: 20 | C7: 0.63 | D7: 10.75 | E7: 10 | F7: 0.63 | G7: 0.93 | J7: A1 | K7: Jan | L7: 0.68 | M7: 10.75 | N7: 0.68 | O7: 0.93
A8: Feb | B8: 20 | C8: 0.56 | D8: 12.59 | E8: 10 | F8: 0.56 | G8: 1.06 | K8: Feb | L8: 0.59 | M8: 12.59 | N8: 0.58 | O8: 1.06
A9: Mar | B9: 20 | C9: 0.63 | D9: 11.86 | E9: 10 | F9: 0.62 | G9: 1.2 | K9: Mar | L9: 0.65 | M9: 8.53 | N9: 0.65 | O9: 1.2 | Q9: Whole Installation table A5:G18:
A10: Apr | B10: 20 | C10: 0.57 | D10: 8.8 | E10: 10 | F10: 0.56 | G10: 0.9 | K10: Apr | L10: 0.49 | M10: 8.8 | N10: 0.49 | O10: 0.9 | Q10: Mean: for 1/2 hourly and daily periods calculate mean of values across all operational combustion lines for the month
A11: May | B11: 20 | C11: 0.58 | D11: 7.56 | E11: 10 | F11: 0.57 | G11: 0.89 | K11: May | L11: 0.47 | M11: 7.56 | N11: 0.47 | O11: 0.79
A12: Jun | B12: 20 | C12: 0.53 | D12: 10.36 | E12: 10 | F12: 0.52 | G12: 0.92 | K12: Jun | L12: 0.46 | M12: 10.36 | N12: 0.46 | O12: 0.92
A13: Jul | B13: 20 | C13: 0.64 | D13: 13.35 | E13: 10 | F13: 0.63 | G13: 1.1 | K13: Jul | L13: 0.7 | M13: 13.35 | N13: 0.71 | O13: 1.1 | Q13: Maximum: for 1/2 hourly and daily periods use the highest value across all operational combustion lines for the month
A14: Aug | B14: 20 | C14: 0.59 | D14: 7.68 | E14: 10 | F14: 0.56 | G14: 0.97 | K14: Aug | L14: 0.45 | M14: 7.68 | N14: 0.43 | O14: 0.64
A15: Sep | B15: 20 | C15: 0.5 | D15: 11.31 | E15: 10 | F15: 0.5 | G15: 0.78 | K15: Sep | L15: 0.37 | M15: 11.31 | N15: 0.37 | O15: 0.58
A16: Oct | B16: 20 | C16: 0.48 | D16: 9.28 | E16: 10 | F16: 0.48 | G16: 0.77 | K16: Oct | L16: 0.38 | M16: 9.28 | N16: 0.38 | O16: 0.7
A17: Nov | B17: 20 | C17: 0.48 | D17: 13.1 | E17: 10 | F17: 0.48 | G17: 0.75 | K17: Nov | L17: 0.41 | M17: 13.1 | N17: 0.41 | O17: 0.75
A18: Dec | B18: 20 | C18: 0.47 | D18: 13.94 | E18: 10 | F18: 0.47 | G18: 0.99 | K18: Dec | L18: 0.37 | M18: 13.94 | N18: 0.37 | O18: 0.78
K19: Annual | L19: =AVERAGE(L7:L18) -> 0.5016666667 | M19: =MAX(M7:M18) -> 13.94 | N19: =AVERAGE(N7:N18) -> 0.5 | O19: =MAX(O7:O18) -> 1.2
J21: =+A5 -> 2025 | K21: mg/Nm3 | L21: Monthly mean of half-hourly averages | M21: Highest half- hourly average | N21: Monthly mean of daily averages | O21: Highest daily average
J22: A2 | K22: Jan | L22: 0.59 | M22: 3.27 | N22: 0.58 | O22: 0.8
K23: Feb | L23: 0.54 | M23: 11.21 | N23: 0.54 | O23: 0.72
K24: Mar | L24: 0.6 | M24: 11.86 | N24: 0.58 | O24: 0.8
K25: Apr | L25: 0.65 | M25: 5 | N25: 0.64 | O25: 0.9
K26: May | L26: 0.69 | M26: 4.92 | N26: 0.68 | O26: 0.89
K27: Jun | L27: 0.6 | M27: 3.62 | N27: 0.58 | O27: 0.72
K28: Jul | L28: 0.59 | M28: 5.4 | N28: 0.57 | O28: 0.94
K29: Aug | L29: 0.77 | M29: 5.71 | N29: 0.73 | O29: 0.97
K30: Sep | L30: 0.63 | M30: 3.22 | N30: 0.63 | O30: 0.78
K31: Oct | L31: 0.58 | M31: 3.73 | N31: 0.59 | O31: 0.77
K32: Nov | L32: 0.55 | M32: 4.21 | N32: 0.55 | O32: 0.67
K33: Dec | L33: 0.58 | M33: 4.49 | N33: 0.57 | O33: 0.99
K34: Annual | L34: =AVERAGE(L22:L33) -> 0.6141666667 | M34: =MAX(M22:M33) -> 11.86 | N34: =AVERAGE(N22:N33) -> 0.6033333333 | O34: =MAX(O22:O33) -> 0.99
J36: =+A5 -> 2025 | K36: mg/Nm3 | L36: Monthly mean of half-hourly averages | M36: Highest half- hourly average | N36: Monthly mean of daily averages | O36: Highest daily average
J37: A3 | K37: Jan
K38: Feb
K39: Mar
K40: Apr
K41: May
K42: Jun
K43: Jul
K44: Aug
K45: Sep
K46: Oct
K47: Nov
A48: Comments : | K48: Dec
K49: Annual | L49: =AVERAGE(L37:L48) ->  | M49: =MAX(M37:M48) -> 0 | N49: =AVERAGE(N37:N48) ->  | O49: =MAX(O37:O48) -> 0
J51: =+A5 -> 2025 | K51: mg/Nm3 | L51: Monthly mean of half-hourly averages | M51: Highest half- hourly average | N51: Monthly mean of daily averages | O51: Highest daily average
J52: A4 | K52: Jan
K53: Feb
K54: Mar
K55: Apr
K56: May
K57: Jun
K58: Jul
K59: Aug
K60: Sep
K61: Oct
K62: Nov
K63: Dec
K64: Annual | L64: =AVERAGE(L52:L63) ->  | M64: =MAX(M52:M63) -> 0 | N64: =AVERAGE(N52:N63) ->  | O64: =MAX(O52:O63) -> 0
J66: =+A5 -> 2025 | K66: mg/Nm3 | L66: Monthly mean of half-hourly averages | M66: Highest half- hourly average | N66: Monthly mean of daily averages | O66: Highest daily average
J67: A5 | K67: Jan
K68: Feb
K69: Mar
K70: Apr
K71: May
K72: Jun
K73: Jul
K74: Aug
K75: Sep
K76: Oct
K77: Nov
K78: Dec
K79: Annual | L79: =AVERAGE(L67:L78) ->  | M79: =MAX(M67:M78) -> 0 | N79: =AVERAGE(N67:N78) ->  | O79: =MAX(O67:O78) -> 0

Sheet Particulates
A1: =+'Cover Page'!$B$29 -> Annual Performance Report 2025 | E1: =+'Cover Page'!$B$33 -> SELCHP
A3: Monitoring of Particulate matter emissions | D3: Whole Installation | G3: See Notes in Cell Q3 | J3: =+A3 -> Monitoring of Particulate matter emissions | N3: Per Combustion Line | Q3: Notes:
A5: =+'Cover Page'!C39 -> 2025 | B5: 1/2 Hourly Reference Periods | E5: Daily Reference Periods | Q5: User to add logic to complete Whole installation, Table A5:G18. From the data in Per Combustion Line, Table J6:O79, subject to No. of lines installed
A6: mg/Nm3 | B6: 1/2 hourly PM ELV | C6: Monthly mean of half-hourly averages | D6: Highest half- hourly average | E6: Daily PM ELV | F6: Monthly mean of daily averages | G6: Highest daily average | J6: =+A5 -> 2025 | K6: mg/Nm3 | L6: Monthly mean of half-hourly averages | M6: Highest half- hourly average | N6: Monthly mean of daily averages | O6: Highest daily average
A7: Jan | B7: 30 | C7: 1.105 | D7: 11 | E7: 5 | F7: 1.115 | G7: 2.05 | J7: A1 | K7: Jan | L7: 1 | M7: 11 | N7: 1.03 | O7: 2
A8: Feb | B8: 30 | C8: 1.2 | D8: 9.26 | E8: 5 | F8: 1.205 | G8: 2.17 | K8: Feb | L8: 1 | M8: 4 | N8: 1 | O8: 1
A9: Mar | B9: 30 | C9: 1.33 | D9: 11.34 | E9: 5 | F9: 1.32 | G9: 3.39 | K9: Mar | L9: 1 | M9: 4 | N9: 1 | O9: 0.93
A10: Apr | B10: 30 | C10: 1.375 | D10: 8.83 | E10: 5 | F10: 1.345 | G10: 3.37 | K10: Apr | L10: 1 | M10: 7 | N10: 1 | O10: 1 | Q10: Whole Installation table A5:G18:
A11: May | B11: 30 | C11: 1.185 | D11: 8.95 | E11: 5 | F11: 1.185 | G11: 1.84 | K11: May | L11: 1 | M11: 6 | N11: 1 | O11: 1 | Q11: Mean: for 1/2 hourly and daily periods calculate mean of values across all operational combustion lines for the month
A12: Jun | B12: 30 | C12: 1.345 | D12: 8.11 | E12: 5 | F12: 1.35 | G12: 2.7 | K12: Jun | L12: 1 | M12: 6 | N12: 1 | O12: 1
A13: Jul | B13: 30 | C13: 1.275 | D13: 17.85 | E13: 5 | F13: 1.275 | G13: 2.05 | K13: Jul | L13: 1 | M13: 7 | N13: 1 | O13: 1
A14: Aug | B14: 30 | C14: 1.08 | D14: 27.61 | E14: 5 | F14: 1.055 | G14: 1.64 | K14: Aug | L14: 1 | M14: 10 | N14: 1 | O14: 1 | Q14: Maximum: for 1/2 hourly and daily periods use the highest value across all operational combustion lines for the month
A15: Sep | B15: 30 | C15: 0.83 | D15: 8 | E15: 5 | F15: 1.33 | G15: 3 | K15: Sep | L15: 1 | M15: 8 | N15: 2 | O15: 3
A16: Oct | B16: 30 | C16: 1.27 | D16: 7 | E16: 5 | F16: 1.27 | G16: 3 | K16: Oct | L16: 2 | M16: 7 | N16: 2 | O16: 3
A17: Nov | B17: 30 | C17: 1.27 | D17: 16 | E17: 5 | F17: 1.27 | G17: 3 | K17: Nov | L17: 2 | M17: 16 | N17: 2 | O17: 3
A18: Dec | B18: 30 | C18: 1.355 | D18: 11.5 | E18: 5 | F18: 1.355 | G18: 3 | K18: Dec | L18: 2 | M18: 10 | N18: 2 | O18: 3
K19: Annual | L19: =AVERAGE(L7:L18) -> 1.25 | M19: =MAX(M7:M18) -> 16 | N19: =AVERAGE(N7:N18) -> 1.335833333 | O19: =MAX(O7:O18) -> 3
J21: =+A5 -> 2025 | K21: mg/Nm3 | L21: Monthly mean of half-hourly averages | M21: Highest half- hourly average | N21: Monthly mean of daily averages | O21: Highest daily average
J22: A2 | K22: Jan | L22: 1.21 | M22: 7.38 | N22: 1.2 | O22: 2.05
K23: Feb | L23: 1.4 | M23: 9.26 | N23: 1.41 | O23: 2.17
K24: Mar | L24: 1.66 | M24: 11.34 | N24: 1.64 | O24: 3.39
K25: Apr | L25: 1.75 | M25: 8.83 | N25: 1.69 | O25: 3.37
K26: May | L26: 1.37 | M26: 8.95 | N26: 1.37 | O26: 1.84
K27: Jun | L27: 1.69 | M27: 8.11 | N27: 1.7 | O27: 2.7
K28: Jul | L28: 1.55 | M28: 17.85 | N28: 1.55 | O28: 2.05
K29: Aug | L29: 1.16 | M29: 27.61 | N29: 1.11 | O29: 1.64
K30: Sep | L30: 0.66 | M30: 6.94 | N30: 0.66 | O30: 1.08
K31: Oct | L31: 0.54 | M31: 4.76 | N31: 0.54 | O31: 0.66
K32: Nov | L32: 0.54 | M32: 7.76 | N32: 0.54 | O32: 0.7
K33: Dec | L33: 0.71 | M33: 11.5 | N33: 0.71 | O33: 1.33
K34: Annual | L34: =AVERAGE(L22:L33) -> 1.186666667 | M34: =MAX(M22:M33) -> 27.61 | N34: =AVERAGE(N22:N33) -> 1.176666667 | O34: =MAX(O22:O33) -> 3.39
J36: =+A5 -> 2025 | K36: mg/Nm3 | L36: Monthly mean of half-hourly averages | M36: Highest half- hourly average | N36: Monthly mean of daily averages | O36: Highest daily average
J37: A3 | K37: Jan
K38: Feb
K39: Mar
K40: Apr
K41: May
K42: Jun
K43: Jul
K44: Aug
K45: Sep
K46: Oct
K47: Nov
A48: Comments : | K48: Dec
K49: Annual | L49: =AVERAGE(L37:L48) ->  | M49: =MAX(M37:M48) -> 0 | N49: =AVERAGE(N37:N48) ->  | O49: =MAX(O37:O48) -> 0
J51: =+A5 -> 2025 | K51: mg/Nm3 | L51: Monthly mean of half-hourly averages | M51: Highest half- hourly average | N51: Monthly mean of daily averages | O51: Highest daily average
J52: A4 | K52: Jan
K53: Feb
K54: Mar
K55: Apr
K56: May
K57: Jun
K58: Jul
K59: Aug
K60: Sep
K61: Oct
K62: Nov
K63: Dec
K64: Annual | L64: =AVERAGE(L52:L63) ->  | M64: =MAX(M52:M63) -> 0 | N64: =AVERAGE(N52:N63) ->  | O64: =MAX(O52:O63) -> 0
J66: =+A5 -> 2025 | K66: mg/Nm3 | L66: Monthly mean of half-hourly averages | M66: Highest half- hourly average | N66: Monthly mean of daily averages | O66: Highest daily average
J67: A5 | K67: Jan
K68: Feb
K69: Mar
K70: Apr
K71: May
K72: Jun
K73: Jul
K74: Aug
K75: Sep
K76: Oct
K77: Nov
K78: Dec
K79: Annual | L79: =AVERAGE(L67:L78) ->  | M79: =MAX(M67:M78) -> 0 | N79: =AVERAGE(N67:N78) ->  | O79: =MAX(O67:O78) -> 0

Sheet CO 0.5 hourly
A1: =+'Cover Page'!$B$29 -> Annual Performance Report 2025 | E1: =+'Cover Page'!$B$33 -> SELCHP
A3: Monitoring of Carbon Monoxide (half hourly) | D3: Whole Installation | G3: See Notes in Cell Q3 | J3: =+A3 -> Monitoring of Carbon Monoxide (half hourly) | N3: Per Combustion Line | Q3: Notes:
A5: Please complete this tab for your plant if you have 1/2 hourly CO ELVs; otherwise, leave it blank and complete the CO 95% 10 min tab
Q7: User to add logic to complete Whole installation, Table A5:G18. From the data in Per Combustion Line, Table J6:O79, subject to No. of lines installed
A8: =+'Cover Page'!C39 -> 2025 | B8: 1/2 Hourly Reference Periods | E8: Daily Reference Periods
A9: mg/Nm3 | B9: 1/2 hourly CO ELV | C9: Monthly mean of half-hourly averages | D9: Highest half- hourly average | E9: Daily CO ELV | F9: Monthly mean of daily averages | G9: Highest daily average | J9: =+A8 -> 2025 | K9: mg/Nm3 | L9: Monthly mean of half-hourly averages | M9: Highest half- hourly average | N9: Monthly mean of daily averages | O9: Highest daily average
A10: Jan | B10: 100 | E10: 50 | J10: A1 | K10: Jan
A11: Feb | B11: =+B10 -> 100 | E11: =+E10 -> 50 | K11: Feb
A12: Mar | B12: =+B11 -> 100 | E12: =+E11 -> 50 | K12: Mar | Q12: Whole Installation table A5:G18:
A13: Apr | B13: 100 | E13: 50 | K13: Apr | Q13: Mean: for 1/2 hourly and daily periods calculate mean of values across all operational combustion lines for the month
A14: May | B14: 100 | E14: 50 | K14: May
A15: Jun | B15: 100 | E15: 50 | K15: Jun
A16: Jul | B16: 100 | E16: 50 | K16: Jul | Q16: Maximum: for 1/2 hourly and daily periods use the highest value across all operational combustion lines for the month
A17: Aug | B17: 100 | E17: 50 | K17: Aug
A18: Sep | B18: 100 | E18: 50 | K18: Sep
A19: Oct | B19: 100 | E19: 50 | K19: Oct
A20: Nov | B20: 100 | E20: 50 | K20: Nov
A21: Dec | B21: 100 | E21: 50 | K21: Dec
K22: Annual | L22: =AVERAGE(L10:L21) ->  | M22: =MAX(M10:M21) -> 0 | N22: =AVERAGE(N10:N21) ->  | O22: =MAX(O10:O21) -> 0
J24: =+A8 -> 2025 | K24: mg/Nm3 | L24: Monthly mean of half-hourly averages | M24: Highest half- hourly average | N24: Monthly mean of daily averages | O24: Highest daily average
J25: A2 | K25: Jan
K26: Feb
K27: Mar
K28: Apr
K29: May
K30: Jun
K31: Jul
K32: Aug
K33: Sep
K34: Oct
K35: Nov
K36: Dec
K37: Annual | L37: =AVERAGE(L25:L36) ->  | M37: =MAX(M25:M36) -> 0 | N37: =AVERAGE(N25:N36) ->  | O37: =MAX(O25:O36) -> 0
J39: =+A8 -> 2025 | K39: mg/Nm3 | L39: Monthly mean of half-hourly averages | M39: Highest half- hourly average | N39: Monthly mean of daily averages | O39: Highest daily average
J40: A3 | K40: Jan
K41: Feb
K42: Mar
K43: Apr
K44: May
K45: Jun
K46: Jul
K47: Aug
K48: Sep
K49: Oct
K50: Nov
A51: Comments : | K51: Dec
K52: Annual | L52: =AVERAGE(L40:L51) ->  | M52: =MAX(M40:M51) -> 0 | N52: =AVERAGE(N40:N51) ->  | O52: =MAX(O40:O51) -> 0
J54: =+A8 -> 2025 | K54: mg/Nm3 | L54: Monthly mean of half-hourly averages | M54: Highest half- hourly average | N54: Monthly mean of daily averages | O54: Highest daily average
J55: A4 | K55: Jan
K56: Feb
K57: Mar
K58: Apr
K59: May
K60: Jun
K61: Jul
K62: Aug
K63: Sep
K64: Oct
K65: Nov
K66: Dec
K67: Annual | L67: =AVERAGE(L55:L66) ->  | M67: =MAX(M55:M66) -> 0 | N67: =AVERAGE(N55:N66) ->  | O67: =MAX(O55:O66) -> 0
J69: =+A8 -> 2025 | K69: mg/Nm3 | L69: Monthly mean of half-hourly averages | M69: Highest half- hourly average | N69: Monthly mean of daily averages | O69: Highest daily average
J70: A5 | K70: Jan
K71: Feb
K72: Mar
K73: Apr
K74: May
K75: Jun
K76: Jul
K77: Aug
K78: Sep
K79: Oct
K80: Nov
K81: Dec
K82: Annual | L82: =AVERAGE(L70:L81) ->  | M82: =MAX(M70:M81) -> 0 | N82: =AVERAGE(N70:N81) ->  | O82: =MAX(O70:O81) -> 0

Sheet CO 95% 10 min
A1: =+'Cover Page'!$B$29 -> Annual Performance Report 2025 | E1: =+'Cover Page'!$B$33 -> SELCHP
A3: Monitoring of Carbon Monoxide (10-minute avg) | E3: Whole Installation | H3: See Notes in Cell S3 | J3: =+A3 -> Monitoring of Carbon Monoxide (10-minute avg) | O3: Per Combustion Line | Q3: Notes: | S3: Notes:
A5: Please complete this tab for your plant if you have 10-minute average CO ELVs; otherwise, leave it blank and complete the CO 0.5 hourly tab
S7: User to add logic to complete Whole installation, Table A5:H18. From the data in Per Combustion Line, Table K6:Q79, subject to No. of lines installed
A8: =+'Cover Page'!C39 -> 2025 | B8: 10-minute Reference Periods | F8: Daily Reference Periods
A9: mg/Nm3 | B9: 95%ile 10-min avg CO ELV | C9: Highest daily 95%ile 10-min average | D9: Monthly mean of 10-min averages | E9: Highest 10-min average | F9: Daily CO ELV | G9: Monthly mean of daily averages | H9: Highest daily average | K9: =+A8 -> 2025 | L9: mg/Nm3 | M9: Highest daily 95%ile 10-min average | N9: Monthly mean of 10-min averages | O9: Highest 10-min average | P9: Monthly mean of daily averages | Q9: Highest daily average
A10: Jan | B10: 150 | C10: 105.81 | D10: 11.94 | E10: 1147.65 | F10: 50 | G10: 11.95 | H10: 22.87 | K10: A1 | L10: Jan | M10: 105.81 | N10: 14.27 | O10: 1147.65 | P10: 14.41 | Q10: 22.87
A11: Feb | B11: =+B10 -> 150 | C11: 70.64 | D11: 10.47 | E11: 1625.84 | F11: =+F10 -> 50 | G11: 10.97 | H11: 34.02 | L11: Feb | M11: 70.64 | N11: 12.48 | O11: 1625.84 | P11: 12.51 | Q11: 28.13
A12: Mar | B12: =+B11 -> 150 | C12: 61.9 | D12: 10.27 | E12: 1420.94 | F12: =+F11 -> 50 | G12: 10.31 | H12: 18.61 | L12: Mar | M12: 61.9 | N12: 11.83 | O12: 1420.94 | P12: 11.88 | Q12: 18.61 | S12: Whole Installation table A5:H18:
A13: Apr | B13: 150 | C13: 90.39 | D13: 9.04 | E13: 1327.82 | F13: 50 | G13: 9.07 | H13: 28.8 | L13: Apr | M13: 90.39 | N13: 10.63 | O13: 1327.82 | P13: 10.63 | Q13: 28.8 | S13: Mean: for 10-min and daily periods use average of all operational combustion lines.
A14: May | B14: 150 | C14: 74.58 | D14: 7.72 | E14: 1068.07 | F14: 50 | G14: 8.03 | H14: 24.82 | L14: May | M14: 74.58 | N14: 7.71 | O14: 1068.07 | P14: 7.77 | Q14: 17.96
A15: Jun | B15: 150 | C15: 84.65 | D15: 8.12 | E15: 1704.76 | F15: 50 | G15: 8.36 | H15: 29.59 | L15: Jun | M15: 84.65 | N15: 8.83 | O15: 1323.28 | P15: 8.84 | Q15: 21.05
A16: Jul | B16: 150 | C16: 66.37 | D16: 7.84 | E16: 2846.19 | F16: 50 | G16: 7.88 | H16: 25.51 | L16: Jul | M16: 66.37 | N16: 8.9 | O16: 2846.19 | P16: 9.1 | Q16: 25.51 | S16: Maximum: for 10-min and daily periods use the highest of all operational combustion lines in any month.
A17: Aug | B17: 150 | C17: 38.59 | D17: 4.51 | E17: 731.97 | F17: 50 | G17: 4.42 | H17: 10.48 | L17: Aug | M17: 38.59 | N17: 4.76 | O17: 731.97 | P17: 4.6 | Q17: 10.48
A18: Sep | B18: 150 | C18: 21.36 | D18: 4.48 | E18: 1401.05 | F18: 50 | G18: 4.48 | H18: 14.48 | L18: Sep | M18: 21.36 | N18: 5.12 | O18: 1401.05 | P18: 5.15 | Q18: 14.48
A19: Oct | B19: 150 | C19: 23.33 | D19: 5.5 | E19: 1054.84 | F19: 50 | G19: 5.5 | H19: 18.18 | L19: Oct | M19: 23.33 | N19: 5.97 | O19: 1054.84 | P19: 5.97 | Q19: 18.18
A20: Nov | B20: 150 | C20: 26.98 | D20: 5.94 | E20: 1322.71 | F20: 50 | G20: 5.93 | H20: 15.57 | L20: Nov | M20: 26.98 | N20: 6.68 | O20: 1322.71 | P20: 6.68 | Q20: 15.57
A21: Dec | B21: 150 | C21: 55.25 | D21: 5.88 | E21: 1127.1 | F21: 50 | G21: 5.88 | H21: 20.63 | L21: Dec | M21: 55.25 | N21: 6.49 | O21: 1127.1 | P21: 6.5 | Q21: 20.63
L22: Annual | M22: =AVERAGE(M10:M21) -> 59.9875 | O22: =MAX(O10:O21) -> 2846.19 | P22: =AVERAGE(P10:P21) -> 8.67 | Q22: =MAX(Q10:Q21) -> 28.8
K24: =+A8 -> 2025 | L24: mg/Nm3 | M24: Highest daily 95%ile 10-min average | N24: Monthly mean of 10-min averages | O24: Highest 10-min average | P24: Monthly mean of daily averages | Q24: Highest daily average
K25: A2 | L25: Jan | M25: 45.01 | N25: 9.67 | O25: 175.66 | P25: 9.65 | Q25: 12.65
L26: Feb | M26: 40.13 | N26: 8.55 | O26: 901.27 | P26: 8.57 | Q26: 15.99
L27: Mar | M27: 30.52 | N27: 8.62 | O27: 1129.01 | P27: 8.65 | Q27: 16.04
L28: Apr | M28: 19.4 | N28: 7.25 | O28: 256.05 | P28: 7.26 | Q28: 10.36
L29: May | M29: 34.7 | N29: 7.73 | O29: 892.68 | P29: 7.66 | Q29: 12.32
L30: Jun | M30: 26.91 | N30: 7.37 | O30: 1704.76 | P30: 7.38 | Q30: 17.29
L31: Jul | M31: 12.79 | N31: 7.02 | O31: 817.77 | P31: 7.03 | Q31: 15.03
L32: Aug | M32: 22.86 | N32: 4.19 | O32: 121.65 | P32: 4.13 | Q32: 6.1
L33: Sep | M33: 14.64 | N33: 3.86 | O33: 218.77 | P33: 3.86 | Q33: 5.76
L34: Oct | M34: 20.59 | N34: 5.04 | O34: 236.91 | P34: 5.04 | Q34: 8.28
L35: Nov | M35: 23.63 | N35: 5.2 | O35: 186.4 | P35: 5.2 | Q35: 8.57
L36: Dec | M36: 17.83 | N36: 5.24 | O36: 360.68 | P36: 5.25 | Q36: 7.4
L37: Annual | M37: =AVERAGE(M25:M36) -> 25.75083333 | O37: =MAX(O25:O36) -> 1704.76 | P37: =AVERAGE(P25:P36) -> 6.64 | Q37: =MAX(Q25:Q36) -> 17.29
K39: =+A8 -> 2025 | L39: mg/Nm3 | M39: Highest daily 95%ile 10-min average | N39: Monthly mean of 10-min averages | O39: Highest 10-min average | P39: Monthly mean of daily averages | Q39: Highest daily average
K40: A3 | L40: Jan
L41: Feb
L42: Mar
L43: Apr
L44: May
L45: Jun
L46: Jul
L47: Aug
L48: Sep
L49: Oct
L50: Nov
A51: Comments : | L51: Dec
A52: Environment Agency explanatory note: The 10-minute average ELV is based on the “95th percentile”. In this case this means that 95% of the 10 minute averages in the relevant 24-hour period (i.e. 137) must be below 150 mg/Nm3, and 5% (i.e. 7) are allowed to be any value above 150 mg/Nm3. Whilst we expect operators to minimise CO emissions at all times, it is perfectly acceptable for the value of the maximum 10-minute average to be above 150 mg/Nm3, provided the 95th percentile ELV has been met for that period. | L52: Annual | M52: =AVERAGE(M40:M51) ->  | O52: =MAX(O40:O51) -> 0 | P52: =AVERAGE(P40:P51) ->  | Q52: =MAX(Q40:Q51) -> 0
K54: =+A8 -> 2025 | L54: mg/Nm3 | M54: Highest daily 95%ile 10-min average | N54: Monthly mean of 10-min averages | O54: Highest 10-min average | P54: Monthly mean of daily averages | Q54: Highest daily average
K55: A4 | L55: Jan
L56: Feb
L57: Mar
L58: Apr
L59: May
L60: Jun
L61: Jul
L62: Aug
L63: Sep
L64: Oct
L65: Nov
L66: Dec
L67: Annual | M67: =AVERAGE(M55:M66) ->  | O67: =MAX(O55:O66) -> 0 | P67: =AVERAGE(P55:P66) ->  | Q67: =MAX(Q55:Q66) -> 0
K69: =+A8 -> 2025 | L69: mg/Nm3 | M69: 95%ile 10-min avg maximum | N69: Monthly CO 10-min avg mean | O69: 10-min avg maximum | P69: Monthly daily mean | Q69: Monthly daily maximum
K70: A5 | L70: Jan
L71: Feb
L72: Mar
L73: Apr
L74: May
L75: Jun
L76: Jul
L77: Aug
L78: Sep
L79: Oct
L80: Nov
L81: Dec
L82: Annual | M82: =AVERAGE(M70:M81) ->  | O82: =MAX(O70:O81) -> 0 | P82: =AVERAGE(P70:P81) ->  | Q82: =MAX(Q70:Q81) -> 0

Sheet NH3
A1: =+'Cover Page'!$B$29 -> Annual Performance Report 2025 | E1: =+'Cover Page'!$B$33 -> SELCHP
A3: Monitoring of Ammnonia emissions | D3: Whole Installation | G3: See Notes in Cell Q3 | J3: =+A3 -> Monitoring of Ammnonia emissions | N3: Per Combustion Line | Q3: Notes:
Q4: User to add logic to complete Whole installation, Table A5:G18. From the data in Per Combustion Line, Table J6:O79, subject to No. of lines installed
A5: =+'Cover Page'!C39 -> 2025 | B5: 1/2 Hourly Reference Periods | E5: Daily Reference Periods
A6: mg/Nm3 | B6: 1/2 hourly NH3 ELV | C6: Monthly mean of half-hourly averages | D6: Highest half- hourly average | E6: Daily NH3 ELV | F6: Monthly mean of daily averages | G6: Highest daily average | J6: =+A5 -> 2025 | K6: mg/Nm3 | L6: Monthly mean of half-hourly averages | M6: Highest half- hourly average | N6: Monthly mean of daily averages | O6: Highest daily average
A7: Jan | B7: None | C7: 3.35 | D7: 21.39 | E7: 15 | F7: 3.36 | G7: 5.5 | J7: A1 | K7: Jan | L7: 3.63 | M7: 16.71 | N7: 3.66 | O7: 5.5
A8: Feb | B8: =+B7 -> None | C8: 2.98 | D8: 15.67 | E8: 15 | F8: 2.98 | G8: 5.3 | K8: Feb | L8: 3.27 | M8: 14.99 | N8: 3.26 | O8: 5.3
A9: Mar | B9: =+B8 -> None | C9: 2.21 | D9: 14.05 | E9: 15 | F9: 2.21 | G9: 6.22 | K9: Mar | L9: 1.58 | M9: 14.05 | N9: 1.57 | O9: 2.74 | Q9: Whole Installation table A5:G18:
A10: Apr | B10: None | C10: 1.98 | D10: 10.48 | E10: 15 | F10: 1.96 | G10: 4.98 | K10: Apr | L10: 0.97 | M10: 9.89 | N10: 0.97 | O10: 2.92 | Q10: Mean: for 1/2 hourly and daily periods calculate mean of values across all operational combustion lines for the month
A11: May | B11: None | C11: 2.46 | D11: 14.15 | E11: 15 | F11: 2.45 | G11: 5.44 | K11: May | L11: 0.82 | M11: 6.72 | N11: 0.82 | O11: 1.37
A12: Jun | B12: None | C12: 2.6 | D12: 16.02 | E12: 15 | F12: 2.54 | G12: 6.82 | K12: Jun | L12: 1.08 | M12: 16.02 | N12: 1.08 | O12: 2.14
A13: Jul | B13: None | C13: 2.64 | D13: 22.22 | E13: 15 | F13: 2.52 | G13: 9.13 | K13: Jul | L13: 1.31 | M13: 19.36 | N13: 1.09 | O13: 3.95 | Q13: Maximum: for 1/2 hourly and daily periods use the highest value across all operational combustion lines for the month
A14: Aug | B14: None | C14: 2.32 | D14: 14.18 | E14: 15 | F14: 2.25 | G14: 4.99 | K14: Aug | L14: 2.08 | M14: 14.18 | N14: 1.97 | O14: 4.99
A15: Sep | B15: None | C15: 1.27 | D15: 9.3 | E15: 15 | F15: 1.26 | G15: 3.6 | K15: Sep | L15: 1.31 | M15: 8.47 | N15: 1.31 | O15: 3.6
A16: Oct | B16: None | C16: 1.58 | D16: 9.69 | E16: 15 | F16: 1.58 | G16: 4.37 | K16: Oct | L16: 1.16 | M16: 5.28 | N16: 1.16 | O16: 2.22
A17: Nov | B17: None | C17: 1.61 | D17: 23.7 | E17: 15 | F17: 1.61 | G17: 4.01 | K17: Nov | L17: 0.9 | M17: 5.36 | N17: 0.9 | O17: 1.46
A18: Dec | B18: None | C18: 1.89 | D18: 17.75 | E18: 15 | F18: 1.87 | G18: 5.83 | K18: Dec | L18: 0.83 | M18: 11.09 | N18: 0.83 | O18: 2.81
K19: Annual | L19: =AVERAGE(L7:L18) -> 1.578333333 | M19: =MAX(M7:M18) -> 19.36 | N19: =AVERAGE(N7:N18) -> 1.551666667 | O19: =MAX(O7:O18) -> 5.5
J21: =+A5 -> 2025 | K21: mg/Nm3 | L21: Monthly mean of half-hourly averages | M21: Highest half- hourly average | N21: Monthly mean of daily averages | O21: Highest daily average
J22: A2 | K22: Jan | L22: 3.08 | M22: 21.39 | N22: 3.09 | O22: 4.85
K23: Feb | L23: 2.7 | M23: 15.67 | N23: 2.72 | O23: 4.27
K24: Mar | L24: 2.87 | M24: 11.67 | N24: 2.88 | O24: 6.22
K25: Apr | L25: 3.09 | M25: 10.48 | N25: 3.1 | O25: 4.98
K26: May | L26: 4.09 | M26: 14.15 | N26: 4.08 | O26: 5.44
K27: Jun | L27: 4.22 | M27: 14.5 | N27: 4.17 | O27: 6.82
K28: Jul | L28: 3.68 | M28: 22.22 | N28: 3.57 | O28: 9.13
K29: Aug | L29: 2.63 | M29: 13.14 | N29: 2.6 | O29: 4.75
K30: Sep | L30: 1.22 | M30: 9.3 | N30: 1.22 | O30: 2.74
K31: Oct | L31: 1.99 | M31: 9.69 | N31: 1.99 | O31: 4.37
K32: Nov | L32: 2.31 | M32: 23.7 | N32: 2.31 | O32: 4.01
K33: Dec | L33: 2.97 | M33: 17.75 | N33: 2.95 | O33: 5.83
K34: Annual | L34: =AVERAGE(L22:L33) -> 2.904166667 | M34: =MAX(M22:M33) -> 23.7 | N34: =AVERAGE(N22:N33) -> 2.89 | O34: =MAX(O22:O33) -> 9.13
J36: =+A5 -> 2025 | K36: mg/Nm3 | L36: Monthly mean of half-hourly averages | M36: Highest half- hourly average | N36: Monthly mean of daily averages | O36: Highest daily average
J37: A3 | K37: Jan
K38: Feb
K39: Mar
K40: Apr
K41: May
K42: Jun
K43: Jul
K44: Aug
K45: Sep
K46: Oct
K47: Nov
A48: Comments : | K48: Dec
A49: An indicated ELV value of zero in the table above means that no ammonia limit is/was set in the permit. | K49: Annual | L49: =AVERAGE(L37:L48) ->  | M49: =MAX(M37:M48) -> 0 | N49: =AVERAGE(N37:N48) ->  | O49: =MAX(O37:O48) -> 0
J51: =+A5 -> 2025 | K51: mg/Nm3 | L51: Monthly mean of half-hourly averages | M51: Highest half- hourly average | N51: Monthly mean of daily averages | O51: Highest daily average
J52: A4 | K52: Jan
K53: Feb
K54: Mar
K55: Apr
K56: May
K57: Jun
K58: Jul
K59: Aug
K60: Sep
K61: Oct
K62: Nov
K63: Dec
K64: Annual | L64: =AVERAGE(L52:L63) ->  | M64: =MAX(M52:M63) -> 0 | N64: =AVERAGE(N52:N63) ->  | O64: =MAX(O52:O63) -> 0
J66: =+A5 -> 2025 | K66: mg/Nm3 | L66: Monthly mean of half-hourly averages | M66: Highest half- hourly average | N66: Monthly mean of daily averages | O66: Highest daily average
J67: A5 | K67: Jan
K68: Feb
K69: Mar
K70: Apr
K71: May
K72: Jun
K73: Jul
K74: Aug
K75: Sep
K76: Oct
K77: Nov
K78: Dec
K79: Annual | L79: =AVERAGE(L67:L78) ->  | M79: =MAX(M67:M78) -> 0 | N79: =AVERAGE(N67:N78) ->  | O79: =MAX(O67:O78) -> 0

Sheet Template changes log
A1: Log of changes to template (Environment Agency use only)
A3: Date | B3: Description of change | C3: New version number and date
A4: 2024-01-16 | B4: Air (periodic) tab: corrected default O2 reference from 6 to 11% | C4: Version 23.5a (for incinerators) - 16/01/2024
A5: 2024-09-23 | B5: Air (periodic) tab: corrected symbol for Thallium to Tl
A6: 2024-09-23 | B6: Air (periodic) tab: removed last year's references to different emission limit values applying from 03/12/23 and updated all relevant ELVs
A7: 2024-09-23 | B7: Tabs for continuously monitored pollutants (HCl, SO2 etc.): changed terminology in table headings to improve clarity
A8: 2024-09-23 | B8: Tabs for continuously monitored pollutants (HCl, SO2 etc.): removed last year's references to different emission limit values applying from 03/12/23 and updated all relevant ELVs
A9: 2024-09-23 | B9: Perf 1 tab: updated formula for water usage to report m3 rather than litres and corrected error with formula copying operator name
A10: 2024-09-23 | B10: Operational Summary tab: table added on start-ups and shut-downs
A11: 2024-09-23 | B11: Operational Summary tab: table added on dioxins and mercury protocols
A12: 2024-09-23 | B12: Operational Summary tab: table added on AST, QAL 2 and calibration functions
A13: 2024-09-23 | B13: CO2 N2O tab: various changes made to notes to reflect the fact that most plants should now have calibrated CEMS and flow meters + some have C14 samplers and more up to date industry data | C13: Version 24a (for incinerators) - 23/09/24
A14: 2024-11-08 | B14: CO2 N2O tab: Changed the N2O CO2 equivalence factor from 298 to 265 in line with recently updated government greenhouse gas figures: https://www.gov.uk/government/publications/greenhouse-gas-reporting-conversion-factors-2024
A15: 2024-11-08 | B15: CO2 N2O tab: Added an additional requirement for municipal EfW plants to state the yearly average biogenic percentage of the waste by mass, and reference to a document which sets out a methodology for calculating NCV of waste from the results of C14 sampling.
A16: 2024-11-08 | B16: Permit Compliance tab: Two additional columns added + explanatory notes to the table entitled "Summary of non-compliances under the permit" to allow CCS scores to be stated where relevant.
A17: 2024-11-08 | B17: Residue Quality tab: Note added explaining application of TOC and LOI limits and asking operators to report both metrics where measured. | C17: Version 24.1a (for incinerators) - 08/11/24
A18: 2024-11-27 | B18: Operational Summary tab: table added on start-ups and shut-downs | C18: Version 24.2a (for incinerators) - 27/11/24
A19: 2025-11-27 | B19: Cover Page: Print as PDF and Print Report and pdf buttons deleted and blank columns removed; contents page deleted | C19: Version 25.1a (for incinerators) - 27/11/25
A20: 2025-11-27 | B20: Residue Quality tab renamed to "Residues", and Summary of residue handling table moved from Operational Summary tab to Residues tab.
A21: 2025-11-27 | B21: Various changes made to the Operational Data tab including • Reformatting of the rows under the Operational data heading (Rows 3-8) to make it clearer what information is required. • Amendment of the rows under the Energy Usage / Export heading (Rows 26-32) to calculate an “indicative parasitic load” (now excluding energy imported) • Amendment of the unit for gas usage from cubic feet to cubic metres (Row 50) • Some amendments to the first 2 notes and other minor edits • Deleted "Overall Availability, mean avg. of all lines, hrs" row
A22: 2025-11-27 | B22: Operational Summary tab: Note added requiring all emergency shut-downs be listed, irrespective of whether or not they were reportable.
A23: 2025-11-27 | B23: CO2 N2O tab: Note added to ask operators to ensure that relevant data reported here matches that which will be submitted under the Pollution Inventory
